Workbook

Sheet MENU
B3: Individuálne havarijné poistenie
B7: Produkt č. 276 (bonus) | K7: Kalkulačka KASKO (so segmentáciou pre MV do 3,5 t)
B9: Produkt č. 265 (nebonus)
D19: =CONCATENATE("verzia: ",Date!E8) -> verzia: 03.11.2023
B20: =CONCATENATE("(platnosť verzie od ",Date!E4," do ",Date!E5,")") -> (platnosť verzie od 01.07.2023 do 31.03.2024)
D21: Autor: Mgr. Peter Žilka

Sheet Kalkulačka KASKO
L2: MENU
AC4: xxxxxxx | AD4: xxxxxxx | AE4: xxxxxxx | AF4: xxxxxxx | AG4: xxxxxxx | AH4: xxxxxxx | AI4: xxxxxxx | AJ4: xxxxxxx | AK4: xxxxxxx | AY4: xxxxxxx | AZ4: xxxxxxx | BA4: xxxxxxx | BB4: xxxxxxx | BC4: xxxxxxx | BD4: xxxxxxx | BE4: xxxxxxx | BF4: xxxxxxx | BG4: xxxxxxx | BH4: xxxxxxx | BI4: xxxxxxx | BJ4: xxxxxxx | BK4: xxxxxxx | BL4: xxxxxxx | BM4: xxxxxxx | BN4: xxxxxxx | BO4: xxxxxxx | BP4: xxxxxxx | BQ4: xxxxxxx | BR4: xxxxxxx | BS4: xxxxxxx | BT4: xxxxxxx | BU4: xxxxxxx | BV4: xxxxxxx | BW4: xxxxxxx | BX4: xxxxxxx | BY4: xxxxxxx | BZ4: xxxxxxx | CA4: xxxxxxx | CB4: xxxxxxx | CC4: xxxxxxx | CD4: xxxxxxx | CE4: xxxxxxx | CF4: xxxxxxx | CG4: xxxxxxx | CH4: xxxxxxx
B5: Kalkulačka KASKO individual (276 + 265) | Z5: MENU
D6: =CONCATENATE("(platnosť verzie od ",Date!E4," do ",Date!E5,")") -> (platnosť verzie od 01.07.2023 do 31.03.2024)
D7: =CONCATENATE("verzia: ",Date!E8) -> verzia: 03.11.2023 | I7: 276 (bonus) | L7: 265 (nebonus) | P7: =IF($AD$103=1,"Akcia kasko 2020-2","Bez akcie") -> Bez akcie | S7: 276 (bonus) | V7: 265 (nebonus) | AF7: GAP km | AG7: 50 | BQ7: =BB11 -> 0.048 | BR7: 0.045 | BS7: =BQ7/BR7 -> 1.066666667
I8: bez akcie | L8: bez akcie | S8: =IF($AD$103=1,"AK2020-2","bez akcie") -> bez akcie | V8: =IF($AD$103=1,"AK2020-2","bez akcie") -> bez akcie | AC8: dátum prevzatia MV | AE8: =IF(OR($F$49=0,$F$49>$AG$7),1,0) -> 1 | AF8: prevádzka | AG8: 1 | AN8: zľava pre benefit | BR8: 1.Q2023 | BS8: 2.Q2023 | CC8: Nákladné a iné motorové vozidlá | CD8: Základná sadzba poistného
B9: Účinnosť PZ (predpokladaný zač. poistenia) | D9: =IF(AG11=1,"Požadovaná účinnosť je mimo platnosť kalkulačky!!!",IF(AND(OR(AG14=2,AG14=3),F10>AJ13),"Pre PS > 150 000 EUR požiadaj o ponuku ÚNP",IF(AND(OR(AG14=4,AG14=5,AG14=6,AG14=7,AG14=8,AG14=9,AG14=10,AG14=11,AG14=12,AG14=13,AG14=14,AG14=15),F10>AJ14),"Pre PS > 200 000 EUR požiadaj o ponuku ÚNP",IF(AND(OR(AG14=16,AG14=17),F10>AJ15),"Pre PS > 35 000 EUR požiadaj o ponuku ÚNP"," ")))) ->  | F9: 2024-01-01 | AF9: GAP nové MV | AG9: =IF(AND(F49<>0,F49<=AG7,(F9-D49)<=AG8),1,0) -> 0 | AH9: bez dní | AI9: =IF(AND(F49<>0,F49<=AG7),1,0) -> 0 | AJ9: =IF(AND(AI9=1,D49=0),1,0) -> 0 | AK9: =IF(AND(E47<>AD66,AI9=1,D49<>0,D49>F9),1,0) -> 0 | AN9: 1 | BA9: A | BB9: B | BC9: C | BD9: D | BK9: A | BL9: B | BM9: C | BN9: D | BR9: B | BS9: B | CD9: Typ poistenia A | CE9: Typ poistenia B | CF9: Typ poistenia C | CG9: Typ poistenia D
B10: Poistná suma MV (PS) | F10: 0 | I10: =$F$10 -> 0 | L10: =$F$10 -> 0 | S10: =$F$10 -> 0 | V10: =$F$10 -> 0 | AF10: segmentácia | AG10: =IF(OR(AG14=2,AG14=3),1,0) -> 0 | AQ10: Okres | AR10: EČV | AS10: Koef. | AT10: cluster | AU10: predchadzajúci | AV10: predchadzajúci | AZ10: I. | BA10: =ROUND(BB10*$BA$13,4) -> 0.047 | BB10: 0.048 | BC10: =ROUND(BB10*$BC$13,4) -> 0.017 | BD10: =ROUND(BB10*$BD$13,4) -> 0.01 | BJ10: nákl. MV, autobus | BK10: =ROUND(BL10*$BK$16,4) -> 0.034 | BL10: =BS10 -> 0.0347 | BM10: =ROUND(BL10*$BM$16,4) -> 0.0123 | BN10: =ROUND(BL10*$BN$16,4) -> 0.0072 | BR10: 0.0325 | BS10: =ROUND(BR10*$BS$7,4) -> 0.0347 | BT10: 0.0347 | CC10: Nákladné vozidlá nad 3,5 t (všetky typy) | CD10: =$BK$10 -> 0.034 | CE10: =$BL$10 -> 0.0347 | CF10: =$BM$10 -> 0.0123 | CG10: =$BN$10 -> 0.0072
B11: Značka MV | E11: zadaj značku MV | I11: =IF(OR(AG14=2,AG14=3),$E$11,$D$11) -> 0 | L11: =I11 -> 0 | S11: =I11 -> 0 | V11: =I11 -> 0 | AF11: OUT | AG11: =Date!K11 -> 0 | AM11: =IF($AL$12=1,$AE$47:$AE$51,IF($AL$12=2,$AE$53:$AE$55,IF($AL$12=3,$AG$47:$AG$51,IF($AL$12=4,$AG$53:$AG$55,IF($AL$12=5,$AC$47:$AC$51,IF($AL$12=6,$AC$53:$AC$55,AC47)))))) -> zadaj dohodnutú spoluúčasť | AQ11: zadaj región držiteľa MV | AS11: 0 | AU11: cluster | AV11: koef. | AZ11: II. | BA11: =ROUND(BB11*$BA$13,4) -> 0.047 | BB11: 0.048 | BC11: =ROUND(BB11*$BC$13,4) -> 0.017 | BD11: =ROUND(BB11*$BD$13,4) -> 0.01 | BJ11: nákl. prív., náves, traktor | BK11: =ROUND(BL11*$BK$16,4) -> 0.0315 | BL11: 0.0322 | BM11: =ROUND(BL11*$BM$16,4) -> 0.0114 | BN11: =ROUND(BL11*$BN$16,4) -> 0.0067 | BR11: 0.0302 | BS11: =ROUND(BR11*$BS$7,4) -> 0.0322 | BT11: 0.0322 | CC11: Nákladné prívesy a návesy (všetky typy) | CD11: =$BK$11 -> 0.0315 | CE11: =$BL$11 -> 0.0322 | CF11: =$BM$11 -> 0.0114 | CG11: =$BN$11 -> 0.0067
B12: Typ poistenia | D12: zadaj typ poistenia | I12: =$D$12 -> zadaj typ poistenia | L12: =$D$12 -> zadaj typ poistenia | P12: =IF($AD$103=1,"(len pre typ poistenia B, len pre MV do 3,5 t vrátane, s PS do 100 000 € vrátane)", "pre MV s PS>100 000 €, pre motocykle, trojkolky, úžitkové, obytné a nákladné MV nad 3,5 t, autobusy, traktory, návesy a prívesy") -> pre MV s PS>100 000 €, pre motocykle, trojkolky, úžitkové, obytné a nákladné MV nad 3,5 t, autobusy, traktory, návesy a prívesy | S12: =$D$12 -> zadaj typ poistenia | V12: =$D$12 -> zadaj typ poistenia | AF12: max. PS pre akciu | AG12: 100000 | AI12: PS max. | AJ12: =IF(AND(OR(AG14=2,AG14=3),F10>AJ13),1,IF(AND(OR(AG14=4,AG14=5,AG14=6,AG14=7,AG14=8,AG14=9,AG14=10,AG14=11,AG14=12,AG14=13,AG14=14,AG14=15),F10>AJ14),1,IF(AND(OR(AG14=16,AG14=17),F10>AJ15),1,0))) -> 0 | AK12: PS pre spoluúč. | AL12: =IF($AG$14=1,0,IF(AND(OR($AG$14=2,$AG$14=3),$F$10<=$AK$13),1,IF(AND(OR($AG$14=2,$AG$14=3),$F$10>$AK$13),2,IF(AND(OR($AG$14=16,$AG$14=17),$F$10<=$AK$15),5,IF(AND(OR($AG$14=16,$AG$14=17),$F$10>$AK$15),6,IF(AND(OR($AG$14=7,$AG$14=8,$AG$14=9),F$10<=1660),1,IF($F$10<=$AK$14,3,IF($F$10>$AK$14,4,"X")))))))) -> 0 | AM12: =IF(D17=AC47,0,IF(AND(OR(AL12=2,AL12=4,AL12=6),VLOOKUP($D$17,$AM$13:$AN$20,2,FALSE)=$AN$18),1,0)) -> 0 | AN12: =VLOOKUP($D$17,$AM$13:$AN$20,2,FALSE) ->  | AO12: Bánovce nad Bebravou | AP12: 1 | AQ12: Bánovce nad Bebravou | AR12: BN | AS12: 0.9 | AU12: 7 | AV12: 0.89 | AW12: =EXACT(AO12,AQ12) -> TRUE | AZ12: III. | BA12: =ROUND(BB12*$BA$13,4) -> 0.047 | BB12: 0.048 | BC12: =ROUND(BB12*$BC$13,4) -> 0.017 | BD12: 0.01 | BJ12: motocykel | BK12: =ROUND(BL12*$BK$16,4) -> 0.1476 | BL12: 0.1507 | BM12: =ROUND(BL12*$BM$16,4) -> 0.0534 | BN12: =ROUND(BL12*$BN$16,4) -> 0.0314 | BR12: 0.1413 | BS12: 0.1507 | BT12: 0.1507 | CC12: Nákladné prívesy na osobné vozidlá (všetky typy) | CD12: =$BK$11 -> 0.0315 | CE12: =$BL$11 -> 0.0322 | CF12: =$BM$11 -> 0.0114 | CG12: =$BN$11 -> 0.0067
B13: Druh MV | D13: zadaj druh MV | I13: =$D$13 -> zadaj druh MV | L13: =$D$13 -> zadaj druh MV | S13: =$D$13 -> zadaj druh MV | V13: =$D$13 -> zadaj druh MV | AF13: typ poistenia | AG13: =IF(D12=BA14,1,IF(D12=BB14,2,IF(D12=BC14,3,IF(D12=BD14,4,0)))) -> 0 | AI13: PS max. osobne MV | AJ13: 150000 | AK13: 100000 | AL13: 1 / 2 | AM13: 5%, min. 66 EUR | AN13: M | AO13: Banská Bystrica | AP13: 2 | AQ13: Banská Bystrica | AR13: BB | AS13: 0.95 | AU13: 2 | AV13: 1.04 | AW13: TRUE | BA13: 0.9792 | BB13: 1 | BC13: 0.3542 | BD13: 0.2083 | BJ13: obytné MV | BK13: =ROUND(BL13*$BK$16,4) -> 0.0743 | BL13: 0.0759 | BM13: =ROUND(BL13*$BM$16,4) -> 0.0269 | BN13: =ROUND(BL13*$BN$16,4) -> 0.0158 | BR13: 0.0712 | BS13: 0.0759 | BT13: 0.0759 | CC13: Obytné prívesy na osobné vozidlá (všetky typy) | CD13: =$BK$14 -> 0.0492 | CE13: =$BL$14 -> 0.0502 | CF13: =$BM$14 -> 0.0178 | CG13: =$BN$14 -> 0.0105
B14: Leasingové MV (financované cez leasing alebo úver) | E14: Leasing NIE | I14: =$E$14 -> Leasing NIE | L14: =$E$14 -> Leasing NIE | S14: =$E$14 -> Leasing NIE | V14: =$E$14 -> Leasing NIE | AF14: druh MV | AG14: =VLOOKUP(D13,BI19:BJ35,2,FALSE) -> 1 | AI14: PS max. nakladné | AJ14: 200000 | AK14: 100000 | AL14: 3 / 4 | AM14: spoluúčasť 199 EUR | AN14: M | AO14: Banská Štiavnica | AP14: 3 | AQ14: Banská Štiavnica | AR14: BS | AS14: 1.05 | AU14: 1 | AV14: 1.14 | AW14: TRUE | AZ14: zadaj typ poistenia | BA14: A | BB14: B | BC14: C | BD14: D | BF14: =VLOOKUP(E11,AZ15:BF90,7,FALSE) -> skupina | BJ14: obytný príves | BK14: 0.0492 | BL14: 0.0502 | BM14: 0.0178 | BN14: 0.0105 | BR14: 0.0471 | BS14: 0.0502 | BT14: 0.0502 | CC14: Obytné MV (všetky typy, do aj nad 3,5 t) | CD14: =$BK$13 -> 0.0743 | CE14: =$BL$13 -> 0.0759 | CF14: =$BM$13 -> 0.0269 | CG14: =$BN$13 -> 0.0158
B15: Sadzba | D15: =IF(OR($AG$13=0,$AG$14=1,$AG$16=1,$AG$17=1),0,IF(OR(AG14=2,AG14=3),INDEX($BA$15:$BD$92,VLOOKUP($E$11,$AZ$15:$BE$93,6,FALSE),HLOOKUP($D$12,$BA$14:$BD$93,80,FALSE)),INDEX($BK$19:$BN$35,VLOOKUP($D$13,$BI$19:$BJ$35,2,FALSE),HLOOKUP($D$12,$BA$14:$BD$93,80,FALSE)))) -> 0 | I15: =$D$15 -> 0 | L15: =$D$15 -> 0 | S15: =$D$15 -> 0 | V15: =$D$15 -> 0 | AF15: akcia | AG15: =IF(AND(AG13=2,OR(AG14=2,AG14=3,AG14=10),F10<=AG12),1,0) -> 0 | AI15: PS max. motocykel | AJ15: 35000 | AK15: 25000 | AL15: 5 / 6 | AM15: 5%, min. 165 EUR | AN15: V | AO15: Bardejov | AP15: 4 | AQ15: Bardejov | AR15: BJ | AS15: 1 | AU15: 6 | AV15: 0.94 | AW15: TRUE | AY15: skupina | AZ15: zadaj značku MV | BA15: 0 | BB15: 0 | BC15: 0 | BD15: 0 | BE15: 1 | BF15: =AY15 -> skupina | BJ15: pojazd. PS s EČV | BK15: 0.034 | BL15: 0.0347 | BM15: 0.0123 | BN15: 0.0072 | BR15: 0.0325 | BS15: 0.0347 | BT15: 0.0347 | CC15: Traktory (všetky typy) | CD15: =$BK$11 -> 0.0315 | CE15: =$BL$11 -> 0.0322 | CF15: =$BM$11 -> 0.0114 | CG15: =$BN$11 -> 0.0067
B16: Poistné | I16: =ROUND(I10*I15,2) -> 0 | L16: =ROUND(L10*L15,2) -> 0 | S16: =ROUND(S10*S15,2) -> 0 | V16: =ROUND(V10*V15,2) -> 0 | AE16: zadaj financovanie MV | AF16: 1 | AG16: =VLOOKUP(E14,AE16:AF18,2,FALSE) -> 3 | AI16: Batožina | AJ16: Batožina poistné | AM16: 5%, min. 330 EUR | AN16: V | AO16: Bratislava I | AP16: 5 | AQ16: Bratislava I | AR16: BA, BL | AS16: 1.1 | AU16: 1 | AV16: 1.14 | AW16: TRUE | AY16: I. | AZ16: Alfa Romeo | BA16: =VLOOKUP(AY16,$AZ$10:$BD$12,2,FALSE) -> 0.047 | BB16: =VLOOKUP(AY16,$AZ$10:$BD$12,3,FALSE) -> 0.048 | BC16: =VLOOKUP(AY16,$AZ$10:$BD$12,4,FALSE) -> 0.017 | BD16: =VLOOKUP(AY16,$AZ$10:$BD$12,5,FALSE) -> 0.01 | BE16: 2 | BF16: =AY16 -> I. | BJ16: =AZ13 -> 0 | BK16: =BA13 -> 0.9792 | BL16: =BB13 -> 1 | BM16: =BC13 -> 0.3542 | BN16: =BD13 -> 0.2083 | CC16: Pojazdné pracovné stroje s EČV (všetky typy) | CD16: =$BK$10 -> 0.034 | CE16: =$BL$10 -> 0.0347 | CF16: =$BM$10 -> 0.0123 | CG16: =$BN$10 -> 0.0072
B17: Spoluúčasť ("plechová", nie na ČS) | D17: zadaj dohodnutú spoluúčasť | I17: =IF(AM12=1,0,IF(OR(AG14=2,AG14=3),VLOOKUP($D$17,$AE$47:$AF$51,2,FALSE),IF(OR(AG14=16,AG14=17),VLOOKUP($D$17,$AC$47:$AD$51,2,FALSE),IF(AND(OR(AG14=7,AG14=8,AG14=9),$F$10<=1660),VLOOKUP($D$17,$AE$47:$AF$51,2,FALSE),VLOOKUP($D$17,$AG$47:$AH$51,2,FALSE))))) -> 0 | L17: =$I$17 -> 0 | P17: =D17 -> zadaj dohodnutú spoluúčasť | S17: =IF(AM12=1,0,IF(AND($AD$18=1,$AD$44<>4),VLOOKUP($P$17,$AC$99:$AF$102,3,FALSE),IF(AND($AD$18=1,$AD$44=4),VLOOKUP($P$17,$AC$99:$AF$102,4,FALSE),IF(OR(AG14=2,AG14=3),VLOOKUP($P$17,$AE$47:$AF$51,2,FALSE),IF(OR(AG14=16,AG14=17),VLOOKUP($P$17,$AC$47:$AD$51,2,FALSE),IF(AND(OR(AG14=7,AG14=8,AG14=9),$F$10<=1660),VLOOKUP($P$17,$AE$47:$AF$51,2,FALSE),VLOOKUP($P$17,$AG$47:$AH$51,2,FALSE))))))) -> 0 | V17: =S17 -> 0 | AE17: Leasing ÁNO | AF17: 2 | AG17: =IF(AND(AG16=2,OR(D28>0,F28>0)),1,0) -> 0 | AI17: nepoisťuje sa | AJ17: 0 | AM17: 10%, min. 66 EUR | AN17: M | AO17: Bratislava II | AP17: 6 | AQ17: Bratislava II | AR17: BA, BL | AS17: 1.1 | AU17: 1 | AV17: 1.14 | AW17: TRUE | AY17: II. | AZ17: ARO | BA17: 0.047 | BB17: 0.048 | BC17: 0.017 | BD17: 0.01 | BE17: 3 | BF17: =AY17 -> II. | BP17: Násobok základných PS | BZ17: kontrola | CC17: Autobusy (všetky typy) | CD17: 0.034 | CE17: 0.0347 | CF17: 0.0123 | CG17: 0.0072
B18: Spôsob používania - SP 2 / SP 1 | D18: zadaj ďalší spôsob užívania | E18: zadaj spôsob užívania | I18: =AJ33 -> 0 | L18: =$I$18 -> 0 | S18: =$I$18 -> 0 | V18: =$I$18 -> 0 | AC18: akcia spoluúčasť | AD18: 0 | AE18: Leasing NIE | AF18: 3 | AI18: 400 | AJ18: 2.38 | AM18: 10%, min. 165 EUR | AN18: M | AO18: Bratislava III | AP18: 7 | AQ18: Bratislava III | AR18: BA, BL | AS18: 1.1 | AU18: 1 | AV18: 1.14 | AW18: TRUE | AY18: I. | AZ18: Asia | BA18: 0.047 | BB18: 0.048 | BC18: 0.017 | BD18: 0.01 | BE18: 4 | BF18: I. | BH18: ostatné MV | BI18: Druh MV | BK18: A | BL18: B | BM18: C | BN18: D | BO18: nepoisťuje sa | BP18: 1 x ZPS | BQ18: 2 x ZPS | BR18: 3 x ZPS | BS18: 4 x zPS | BT18: 5 x ZPS | BU18: 6 x ZPS | BV18: 7 x ZPS | BW18: 8 x ZPS | BX18: 9 x ZPS | BY18: 10 x ZPS | BZ18: =IF(OR(AND(OR(AG13=0,AG14=1),$E$43<>$BO$18),AND($AG$14>=6,$AG$14<=9,$E$43<>$BO$18)),1,0) -> 0
F19: Koef. PS | I19: =IF(AG10=0,1,VLOOKUP(F10,AM30:AN44,2,TRUE)) -> 1 | L19: =$I$19 -> 1 | S19: =$I$19 -> 1 | V19: =$I$19 -> 1 | AI19: 800 | AJ19: 4.75 | AM19: 10%, min. 330 EUR | AN19: V | AO19: Bratislava IV | AP19: 8 | AQ19: Bratislava IV | AR19: BA, BL | AS19: 1.1 | AU19: 1 | AV19: 1.14 | AW19: TRUE | AY19: I. | AZ19: Audi | BA19: 0.047 | BB19: 0.048 | BC19: 0.017 | BD19: 0.01 | BE19: 5 | BF19: I. | BI19: zadaj druh MV | BJ19: 1 | BK19: 0 | BL19: 0 | BM19: 0 | BN19: 0 | BO19: 0 | BP19: 0 | BQ19: 0 | BR19: 0 | BS19: 0 | BT19: 0 | BU19: 0 | BV19: 0 | BW19: 0 | BX19: 0 | BY19: 0 | BZ19: 1 | CC19: Motocykle | CD19: =$BK$12 -> 0.1476 | CE19: =$BL$12 -> 0.1507 | CF19: =$BM$12 -> 0.0534 | CG19: =$BN$12 -> 0.0314
B20: zadaj výkon MV | F20: Koef. výkonu | I20: =IF(AG10=0,1,VLOOKUP(B20,AM79:AN84,2,FALSE)) -> 1 | L20: =$I$20 -> 1 | S20: =$I$20 -> 1 | V20: =$I$20 -> 1 | AC20: akcia UPV | AD20: 0 | AF20: pod MinPoist | AG20: =IF(ROUND(I34*I36,2)<I40,1,0) -> 0 | AI20: 1600 | AJ20: 9.5 | AM20: 10%, min. 500 EUR | AN20: V | AO20: Bratislava V | AP20: 9 | AQ20: Bratislava V | AR20: BA, BL | AS20: 1.1 | AU20: 1 | AV20: 1.14 | AW20: TRUE | AY20: I. | AZ20: BMW | BA20: 0.047 | BB20: 0.048 | BC20: 0.017 | BD20: 0.01 | BE20: 6 | BF20: I. | BH20: MV (do 3,5 t) do 5 miest vrátane | BI20: MV (do 3,5 t) do 5 miest vrátane | BJ20: 2 | BK20: 0 | BL20: 0 | BM20: 0 | BN20: 0 | BO20: 0 | BP20: 5 | BQ20: 10 | BR20: 15 | BS20: 20 | BT20: 25 | BU20: 30 | BV20: 35 | BW20: 40 | BX20: 45 | BY20: 50 | BZ20: 2
B21: zadaj región držiteľa MV | F21: Koef. regiónu | I21: =IF(AG10=0,1,VLOOKUP(B21,AQ11:AT90,3,FALSE)) -> 1 | L21: =$I$21 -> 1 | S21: =$I$21 -> 1 | V21: =$I$21 -> 1 | AO21: Brezno | AP21: 10 | AQ21: Brezno | AR21: BR | AS21: 0.95 | AU21: 6 | AV21: 0.94 | AW21: TRUE | AY21: III. | AZ21: Cadillac (iba verzie určené pre Európu) | BA21: 0.047 | BB21: 0.048 | BC21: 0.017 | BD21: 0.01 | BE21: 7 | BF21: III. | BH21: MV (do 3,5 t) 6-9 miest vrátane | BI21: MV (do 3,5 t) 6-9 miest vrátane | BJ21: 3 | BK21: 0 | BL21: 0 | BM21: 0 | BN21: 0 | BO21: 0 | BP21: 8.75 | BQ21: 17.5 | BR21: 26.25 | BS21: 35 | BT21: 43.75 | BU21: 52.5 | BV21: 61.25 | BW21: 70 | BX21: 78.75 | BY21: 87.5 | BZ21: 3
B22: zadaj vek držiteľa MV | F22: Koef. veku | I22: =IF(AG10=0,1,VLOOKUP(B22,AM47:AN57,2,FALSE)) -> 1 | L22: =$I$22 -> 1 | S22: =$I$22 -> 1 | V22: =$I$22 -> 1 | AM22: kontrola spoluúčasti | AN22: =IF(OR(AN23="x",AN24="x",AN25="x",AN26="x"),1,0) -> 0 | AO22: Bytča | AP22: 11 | AQ22: Bytča | AR22: BY | AS22: 1 | AU22: 2 | AV22: 1.04 | AW22: TRUE | AY22: II. | AZ22: Citroën | BA22: 0.047 | BB22: 0.048 | BC22: 0.017 | BD22: 0.01 | BE22: 8 | BF22: II. | BH22: MV (nad 3,5 t) do 5 miest vrátane | BI22: MV (nad 3,5 t) do 5 miest vrátane | BJ22: 4 | BK22: =$BK$10 -> 0.034 | BL22: =$BL$10 -> 0.0347 | BM22: =$BM$10 -> 0.0123 | BN22: =$BN$10 -> 0.0072 | BO22: 0 | BP22: 5 | BQ22: 10 | BR22: 15 | BS22: 20 | BT22: 25 | BU22: 30 | BV22: 35 | BW22: 40 | BX22: 45 | BY22: 50 | BZ22: 4
B23: Úmyselný požiar/výbuch (ÚPV) | D23: nie | I23: =IF(OR($AG$13=1,$AG$13=2),1,VLOOKUP($D$23,$AI$24:$AJ$25,2,FALSE)) -> 1 | L23: =$I$23 -> 1 | S23: =$I$23 -> 1 | V23: =$I$23 -> 1 | AC23: Spôsob používania 2 | AD23: Koef. použitia MV | AE23: Spôsob používania | AF23: Koef. použitia MV | AH23: úmyselný pož/výb | AJ23: koef | AK23: Preprava | AL23: Preprava poistné | AM23: 276 bez akcie | AN23: =IFERROR(IF(AM12=1,0,IF(OR(AG14=2,AG14=3),VLOOKUP($D$17,$AE$47:$AF$51,2,FALSE),IF(OR(AG14=16,AG14=17),VLOOKUP($D$17,$AC$47:$AD$51,2,FALSE),IF(AND(OR(AG14=7,AG14=8,AG14=9),$F$10<=1660),VLOOKUP($D$17,$AE$47:$AF$51,2,FALSE),VLOOKUP($D$17,$AG$47:$AH$51,2,FALSE))))),"x") -> 0 | AO23: Čadca | AP23: 12 | AQ23: Čadca | AR23: CA | AS23: 1.05 | AU23: 3 | AV23: 1.01 | AW23: TRUE | AY23: II. | AZ23: Cupra | BA23: =VLOOKUP(AY23,$AZ$10:$BD$12,2,FALSE) -> 0.047 | BB23: =VLOOKUP(AY23,$AZ$10:$BD$12,3,FALSE) -> 0.048 | BC23: =VLOOKUP(AY23,$AZ$10:$BD$12,4,FALSE) -> 0.017 | BD23: =VLOOKUP(AY23,$AZ$10:$BD$12,5,FALSE) -> 0.01 | BE23: 9 | BF23: II. | BH23: MV (nad 3,5 t) 6-9 miest vrátane | BI23: MV (nad 3,5 t) 6-9 miest vrátane | BJ23: 5 | BK23: =$BK$10 -> 0.034 | BL23: =$BL$10 -> 0.0347 | BM23: =$BM$10 -> 0.0123 | BN23: =$BN$10 -> 0.0072 | BO23: 0 | BP23: 8.75 | BQ23: 17.5 | BR23: 26.25 | BS23: 35 | BT23: 43.75 | BU23: 52.5 | BV23: 61.25 | BW23: 70 | BX23: 78.75 | BY23: 87.5 | BZ23: 5
B24: Násobok koeficientov 1 | I24: =ROUND(I17*I18*I19*I20*I21*I22*I23,4) -> 0 | L24: =ROUND(L17*L18*L19*L20*L21*L22*L23,4) -> 0 | S24: =ROUND(S17*S18*S19*S21*S22*S23,4) -> 0 | V24: =ROUND(V17*V18*V19*V21*V22*V23,4) -> 0 | AC24: zadaj ďalší spôsob užívania | AD24: 0 | AE24: zadaj spôsob užívania | AF24: 0 | AG24: 1 | AH24: nie | AI24: nie | AJ24: 1 | AK24: nepoisťuje sa | AL24: 0 | AM24: 265 bez akcie | AN24: =IFERROR(IF(AM12=1,0,IF(OR(AG14=2,AG14=3),VLOOKUP($D$17,$AE$47:$AF$51,2,FALSE),IF(OR(AG14=16,AG14=17),VLOOKUP($D$17,$AC$47:$AD$51,2,FALSE),IF(AND(OR(AG14=7,AG14=8,AG14=9),$F$10<=1660),VLOOKUP($D$17,$AE$47:$AF$51,2,FALSE),VLOOKUP($D$17,$AG$47:$AH$51,2,FALSE))))),"x") -> 0 | AO24: Detva | AP24: 13 | AQ24: Detva | AR24: DT | AS24: 0.95 | AU24: 4 | AV24: 1 | AW24: TRUE | AY24: II. | AZ24: Dacia | BA24: 0.047 | BB24: 0.048 | BC24: 0.017 | BD24: 0.01 | BE24: 10 | BF24: II. | BH24: náves | BI24: náves | BJ24: 6 | BK24: =$BK$11 -> 0.0315 | BL24: =$BL$11 -> 0.0322 | BM24: =$BM$11 -> 0.0114 | BN24: =$BN$11 -> 0.0067 | BO24: 0 | BP24: nepoistené | BQ24: nepoistené | BR24: nepoistené | BS24: nepoistené | BT24: nepoistené | BU24: nepoistené | BV24: nepoistené | BW24: nepoistené | BX24: nepoistené | BY24: nepoistené | BZ24: 6
B25: Základné poistné | I25: =ROUND(I16*I17*I18*I19*I20*I21*I22,2) -> 0 | L25: =ROUND(L16*L17*L18*L19*L20*L21*L22,2) -> 0 | S25: =ROUND(S16*S17*S18*S19*S20*S21*S22,2) -> 0 | V25: =ROUND(V16*V17*V18*V19*V20*V21*V22,2) -> 0 | AC25: bežné používanie | AD25: 1 | AE25: bežné používanie | AF25: 1 | AG25: 2 | AH25: áno - odstránenie výluky na ÚPV | AI25: áno - odstránenie výluky na ÚPV | AJ25: 1.05 | AK25: 2000 | AL25: 88.84 | AM25: Akcia 276 | AN25: =IFERROR(IF(AM12=1,0,IF(AND($AD$18=1,$AD$44<>4),VLOOKUP($P$17,$AC$99:$AF$102,3,FALSE),IF(AND($AD$18=1,$AD$44=4),VLOOKUP($P$17,$AC$99:$AF$102,4,FALSE),IF(OR(AG14=2,AG14=3),VLOOKUP($P$17,$AE$47:$AF$51,2,FALSE),IF(OR(AG14=16,AG14=17),VLOOKUP($P$17,$AC$47:$AD$51,2,FALSE),IF(AND(OR(AG14=7,AG14=8,AG14=9),$F$10<=1660),VLOOKUP($P$17,$AE$47:$AF$51,2,FALSE),VLOOKUP($P$17,$AG$47:$AH$51,2,FALSE))))))),"x") -> 0 | AO25: Dolný Kubín | AP25: 14 | AQ25: Dolný Kubín | AR25: DK | AS25: 1.05 | AU25: 1 | AV25: 1.14 | AW25: TRUE | AY25: II. | AZ25: Daewoo | BA25: 0.047 | BB25: 0.048 | BC25: 0.017 | BD25: 0.01 | BE25: 11 | BF25: II. | BH25: nákladný príves | BI25: nákladný príves | BJ25: 7 | BK25: =$BK$11 -> 0.0315 | BL25: =$BL$11 -> 0.0322 | BM25: =$BM$11 -> 0.0114 | BN25: =$BN$11 -> 0.0067 | BO25: 0 | BP25: nepoistené | BQ25: nepoistené | BR25: nepoistené | BS25: nepoistené | BT25: nepoistené | BU25: nepoistené | BV25: nepoistené | BW25: nepoistené | BX25: nepoistené | BY25: nepoistené | BZ25: 7
B26: VAZ1 | D26: 0.1 | E26: AZ | F26: 0.1 | I26: =ROUND(1-D26,4) -> 0.9 | L26: =ROUND(1-F26,4) -> 0.9 | S26: =$I$26 -> 0.9 | V26: =$L$26 -> 0.9 | AC26: autopožičovňa | AD26: 2 | AE26: autopožičovňa | AF26: 2 | AG26: 3 | AK26: 3500 | AL26: 148.07 | AM26: Akcia 265 | AN26: =IFERROR(IF(AM12=1,0,IF(AND($AD$18=1,$AD$44<>4),VLOOKUP($P$17,$AC$99:$AF$102,3,FALSE),IF(AND($AD$18=1,$AD$44=4),VLOOKUP($P$17,$AC$99:$AF$102,4,FALSE),IF(OR(AG14=2,AG14=3),VLOOKUP($P$17,$AE$47:$AF$51,2,FALSE),IF(OR(AG14=16,AG14=17),VLOOKUP($P$17,$AC$47:$AD$51,2,FALSE),IF(AND(OR(AG14=7,AG14=8,AG14=9),$F$10<=1660),VLOOKUP($P$17,$AE$47:$AF$51,2,FALSE),VLOOKUP($P$17,$AG$47:$AH$51,2,FALSE))))))),"x") -> 0 | AO26: Dunajská Streda | AP26: 15 | AQ26: Dunajská Streda | AR26: DS | AS26: 0.9 | AU26: 7 | AV26: 0.89 | AW26: TRUE | AY26: II. | AZ26: DS | BA26: 0.047 | BB26: 0.048 | BC26: 0.017 | BD26: 0.01 | BE26: 12 | BF26: II. | BH26: príves za MV do 3,5 t | BI26: príves za MV do 3,5 t | BJ26: 8 | BK26: =$BK$11 -> 0.0315 | BL26: =$BL$11 -> 0.0322 | BM26: =$BM$11 -> 0.0114 | BN26: =$BN$11 -> 0.0067 | BO26: 0 | BP26: nepoistené | BQ26: nepoistené | BR26: nepoistené | BS26: nepoistené | BT26: nepoistené | BU26: nepoistené | BV26: nepoistené | BW26: nepoistené | BX26: nepoistené | BY26: nepoistené | BZ26: 8
B27: VAZ2 | D27: 0.1 | E27: ZVP | F27: 0.1 | I27: =ROUND(1-D27,4) -> 0.9 | L27: =ROUND(1-F27,4) -> 0.9 | S27: =$I$27 -> 0.9 | V27: =$L$27 -> 0.9 | AC27: autoškola | AD27: 1.25 | AE27: autoškola | AF27: 1.25 | AG27: 4 | AK27: 5500 | AL27: 236.92 | AO27: Galanta | AP27: 16 | AQ27: Galanta | AR27: GA | AS27: 0.9 | AU27: 7 | AV27: 0.89 | AW27: TRUE | AY27: III. | AZ27: Daihatsu | BA27: 0.047 | BB27: 0.048 | BC27: 0.017 | BD27: 0.01 | BE27: 13 | BF27: III. | BH27: obytný príves | BI27: obytný príves | BJ27: 9 | BK27: =$BK$14 -> 0.0492 | BL27: =$BL$14 -> 0.0502 | BM27: =$BM$14 -> 0.0178 | BN27: =$BN$14 -> 0.0105 | BO27: 0 | BP27: nepoistené | BQ27: nepoistené | BR27: nepoistené | BS27: nepoistené | BT27: nepoistené | BU27: nepoistené | BV27: nepoistené | BW27: nepoistené | BX27: nepoistené | BY27: nepoistené | BZ27: 9
B28: UNP | D28: 0.1 | E28: UNP | F28: 0.1 | I28: =ROUND(1-D28,4) -> 0.9 | L28: =ROUND(1-F28,4) -> 0.9 | S28: =$I$28 -> 0.9 | V28: =$L$28 -> 0.9 | AC28: dlhodobý nájom | AD28: 1.05 | AE28: dlhodobý nájom | AF28: 1.05 | AG28: 5 | AK28: 7000 | AL28: 296.14 | AO28: Gelnica | AP28: 17 | AQ28: Gelnica | AR28: GL | AS28: 0.95 | AU28: 4 | AV28: 1 | AW28: TRUE | AY28: III. | AZ28: Dodge | BA28: 0.047 | BB28: 0.048 | BC28: 0.017 | BD28: 0.01 | BE28: 14 | BF28: III. | BH28: obytné MV do 3,5 t | BI28: obytné MV do 3,5 t | BJ28: 10 | BK28: =$BK$13 -> 0.0743 | BL28: =$BL$13 -> 0.0759 | BM28: =$BM$13 -> 0.0269 | BN28: =$BN$13 -> 0.0158 | BO28: 0 | BP28: 5 | BQ28: 10 | BR28: 15 | BS28: 20 | BT28: 25 | BU28: 30 | BV28: 35 | BW28: 40 | BX28: 45 | BY28: 50 | BZ28: 10
B29: =IF(AG17=1,"Zľava UNP nie je možná!!!"," ") ->  | E29: NZ | F29: =VLOOKUP(F35,AE90:AF95,2,FALSE) -> 0 | I29: =ROUND(1-D29,4) -> 1 | L29: =IF(AND(AJ87=0,F35=AI90),0,ROUND(1-F29,4)) -> 0 | S29: =$I$29 -> 1 | V29: =$L$29 -> 0 | AC29: krátkodobý nájom | AD29: 2 | AE29: krátkodobý nájom | AF29: 2 | AG29: 6 | AM29: Interval poistnej sumy | AN29: Koef. | AO29: Hlohovec | AP29: 18 | AQ29: Hlohovec | AR29: HC | AS29: 0.9 | AU29: 7 | AV29: 0.89 | AW29: TRUE | AY29: III. | AZ29: Dongfeng | BA29: =VLOOKUP(AY29,$AZ$10:$BD$12,2,FALSE) -> 0.047 | BB29: =VLOOKUP(AY29,$AZ$10:$BD$12,3,FALSE) -> 0.048 | BC29: =VLOOKUP(AY29,$AZ$10:$BD$12,4,FALSE) -> 0.017 | BD29: =VLOOKUP(AY29,$AZ$10:$BD$12,5,FALSE) -> 0.01 | BE29: 15 | BF29: III. | BH29: obytné MV nad 3,5 t | BI29: obytné MV nad 3,5 t | BJ29: 11 | BK29: =$BK$13 -> 0.0743 | BL29: =$BL$13 -> 0.0759 | BM29: =$BM$13 -> 0.0269 | BN29: =$BN$13 -> 0.0158 | BO29: 0 | BP29: 5 | BQ29: 10 | BR29: 15 | BS29: 20 | BT29: 25 | BU29: 30 | BV29: 35 | BW29: 40 | BX29: 45 | BY29: 50 | BZ29: 11
B30: krátenie 50 % provízie | D30: 0 | F30: 0 | I30: =ROUND(1-D30,6) -> 1 | L30: =ROUND(1-F30,6) -> 1 | S30: =$I$30 -> 1 | V30: =$L$30 -> 1 | AC30: náhradné MV | AD30: 1.1 | AE30: náhradné MV | AF30: 1.1 | AG30: 7 | AJ30: koef. | AK30: p. č. | AM30: 0 | AN30: 1.4 | AO30: Humenné | AP30: 19 | AQ30: Humenné | AR30: HE | AS30: 1 | AU30: 3 | AV30: 1.01 | AW30: TRUE | AY30: II. | AZ30: Fiat | BA30: 0.047 | BB30: 0.048 | BC30: 0.017 | BD30: 0.01 | BE30: 16 | BF30: II. | BH30: traktor | BI30: traktor | BJ30: 12 | BK30: =$BK$11 -> 0.0315 | BL30: =$BL$11 -> 0.0322 | BM30: =$BM$11 -> 0.0114 | BN30: =$BN$11 -> 0.0067 | BO30: 0 | BP30: 5 | BQ30: 10 | BR30: 15 | BS30: 20 | BT30: 25 | BU30: 30 | BV30: 35 | BW30: 40 | BX30: 45 | BY30: 50 | BZ30: 12
B31: krátenie 100 % provízie | D31: 0 | F31: 0 | I31: =ROUND(1-D31,6) -> 1 | L31: =ROUND(1-F31,6) -> 1 | S31: =$I$31 -> 1 | V31: =$L$31 -> 1 | AC31: právo prednostnej jazdy | AD31: 1.2 | AE31: právo prednostnej jazdy | AF31: 1.2 | AG31: 8 | AI31: SpôsobPouž 1 | AJ31: =VLOOKUP($E$18,$AE$24:$AF$35,2,FALSE) -> 0 | AK31: =VLOOKUP($E$18,$AE$24:$AG$35,3,FALSE) -> 1 | AL31: =IF(AND($E$47<>$AD$66,$AK$31<>2,$AK$31<>5),1,0) -> 0 | AM31: 10000.01 | AN31: 1.3 | AO31: Ilava | AP31: 20 | AQ31: Ilava | AR31: IL | AS31: 0.9 | AU31: 3 | AV31: 1.01 | AW31: TRUE | AY31: II. | AZ31: Ford | BA31: 0.047 | BB31: 0.048 | BC31: 0.017 | BD31: 0.01 | BE31: 17 | BF31: II. | BH31: pojazdný prac. stroj s EČV | BI31: pojazdný prac. stroj s EČV | BJ31: 13 | BK31: =$BK$15 -> 0.034 | BL31: =$BL$15 -> 0.0347 | BM31: =$BM$15 -> 0.0123 | BN31: =$BN$15 -> 0.0072 | BO31: 0 | BP31: 5 | BQ31: 10 | BR31: 15 | BS31: 20 | BT31: 25 | BU31: 30 | BV31: 35 | BW31: 40 | BX31: 45 | BY31: 50 | BZ31: 13
B32: iná zľava (RUNP) | D32: 0 | F32: 0 | I32: =ROUND(1-D32,6) -> 1 | L32: =ROUND(1-F32,6) -> 1 | S32: =$I$32 -> 1 | V32: =$L$32 -> 1 | AC32: predvádzacie MV | AD32: 1.1 | AE32: predvádzacie MV | AF32: 1.1 | AG32: 9 | AI32: SpôsobPouž 2 | AJ32: =VLOOKUP($D$18,$AC$24:$AD$35,2,FALSE) -> 0 | AK32: =VLOOKUP($D$18,$AC$24:$AG$35,5,FALSE) -> 1 | AL32: =IF(AND($E$47<>$AD$66,$AK$32<>1,$AK$32<>2,$AK$32<>5),1,0) -> 0 | AM32: 13000.01 | AN32: 1.2 | AO32: Kežmarok | AP32: 21 | AQ32: Kežmarok | AR32: KK | AS32: 0.95 | AU32: 4 | AV32: 1 | AW32: TRUE | AY32: II. | AZ32: GAZ | BA32: 0.047 | BB32: 0.048 | BC32: 0.017 | BD32: 0.01 | BE32: 18 | BF32: II. | BH32: autobus od 10-25 miest vrátane | BI32: autobus od 10-25 miest vrátane | BJ32: 14 | BK32: =$BK$10 -> 0.034 | BL32: =$BL$10 -> 0.0347 | BM32: =$BM$10 -> 0.0123 | BN32: =$BN$10 -> 0.0072 | BO32: 0 | BP32: 36.45 | BQ32: 72.9 | BR32: 109.35 | BS32: 145.8 | BT32: 182.25 | BU32: 218.7 | BV32: 255.15 | BW32: 291.6 | BX32: 328.05 | BY32: 364.5 | BZ32: 14
B33: Násobok koeficientov 2 | I33: =ROUND(I26*I27*I28*I29*I30*I31*I32,4) -> 0.729 | L33: =ROUND(L26*L27*L28*L29*L30*L31*L32,4) -> 0 | S33: =ROUND(S26*S27*S28*S29*S30*S31*S32,4) -> 0.729 | V33: =ROUND(V26*V27*V28*V29*V30*V31*V32,4) -> 0 | AC33: preprava nebezpečných vecí | AD33: 1.2 | AE33: preprava nebezpečných vecí | AF33: 1.2 | AG33: 10 | AI33: koef. SP | AJ33: =MAX(AJ31,AJ32) -> 0 | AM33: 15000.01 | AN33: 1.1 | AO33: Komárno | AP33: 22 | AQ33: Komárno | AR33: KN | AS33: 0.9 | AU33: 7 | AV33: 0.89 | AW33: TRUE | AY33: II. | AZ33: Gordon | BA33: 0.047 | BB33: 0.048 | BC33: 0.017 | BD33: 0.01 | BE33: 19 | BF33: II. | BH33: autobus nad 25 miest | BI33: autobus nad 25 miest | BJ33: 15 | BK33: =$BK$10 -> 0.034 | BL33: =$BL$10 -> 0.0347 | BM33: =$BM$10 -> 0.0123 | BN33: =$BN$10 -> 0.0072 | BO33: 0 | BP33: 65.59 | BQ33: 131.18 | BR33: 196.77 | BS33: 262.36 | BT33: 327.95 | BU33: 393.54 | BV33: 459.13 | BW33: 524.72 | BX33: 590.31 | BY33: 655.9 | BZ33: 15
B34: Upravené poistné | I34: =ROUND(I25*I33,2) -> 0 | L34: =ROUND(L25*L33,2) -> 0 | S34: =ROUND(S25*S33,2) -> 0 | V34: =ROUND(V25*V33,2) -> 0 | AC34: taxi | AD34: 1.7 | AE34: taxi | AF34: 1.7 | AG34: 11 | AM34: 17000.01 | AN34: 1.05 | AO34: Košice I | AP34: 23 | AQ34: Košice I | AR34: KE | AS34: 1.15 | AU34: 1 | AV34: 1.14 | AW34: TRUE | AY34: II. | AZ34: Honda | BA34: 0.047 | BB34: 0.048 | BC34: 0.017 | BD34: 0.01 | BE34: 20 | BF34: II. | BH34: motocyklel do 50 cm3 | BI34: motocyklel do 50 cm3 | BJ34: 16 | BK34: =$BK$12 -> 0.1476 | BL34: =$BL$12 -> 0.1507 | BM34: =$BM$12 -> 0.0534 | BN34: =$BN$12 -> 0.0314 | BO34: 0 | BP34: 2.6 | BQ34: 5.2 | BR34: 7.8 | BS34: 10.4 | BT34: 13 | BU34: 15.6 | BV34: 18.2 | BW34: 20.8 | BX34: 23.4 | BY34: 26 | BZ34: 16
B35: Počet zavinených škod. udalosti za posledných 48 mesiacov | F35: zadaj počet PU | AC35: výpožička MV | AD35: 1.05 | AE35: výpožička MV | AF35: 1.05 | AG35: 12 | AI35: kontrola ČS | AJ35: =IF(AND(E45<>AI37,OR(AG13=0,AG14=1,AG14=6,AG14=7,AG14=8,AG14=9)),1,0) -> 1 | AM35: 19000.01 | AN35: 1 | AO35: Košice II | AP35: 24 | AQ35: Košice II | AR35: KE | AS35: 1.15 | AU35: 1 | AV35: 1.14 | AW35: TRUE | AY35: I. | AZ35: Hummer | BA35: 0.047 | BB35: 0.048 | BC35: 0.017 | BD35: 0.01 | BE35: 21 | BF35: I. | BH35: motocyklel nad 50 cm3 | BI35: motocyklel nad 50 cm3 | BJ35: 17 | BK35: =$BK$12 -> 0.1476 | BL35: =$BL$12 -> 0.1507 | BM35: =$BM$12 -> 0.0534 | BN35: =$BN$12 -> 0.0314 | BO35: 0 | BP35: 5.11 | BQ35: 10.22 | BR35: 15.33 | BS35: 20.44 | BT35: 25.55 | BU35: 30.66 | BV35: 35.77 | BW35: 40.88 | BX35: 45.99 | BY35: 51.1 | BZ35: 17
B36: Bonusová zľava (len pre 276) | D36: rozhodná doba čestne prehlásená | F36: =AJ85 -> 0 | I36: =IF(AND(AJ87=0,F35=AI90),0,ROUND(1-F36,4)) -> 0 | L36: =IF(AND(AJ87=0,F35=AI90),0,1) -> 0 | S36: =$I$36 -> 0 | V36: =IF(AND(AJ87=0,F35=AI90),0,1) -> 0 | AI36: čelné sklo | AJ36: ČS poistné | AK36: ČS kód | AM36: 22000.01 | AN36: 0.95 | AO36: Košice III | AP36: 25 | AQ36: Košice III | AR36: KE | AS36: 1.15 | AU36: 1 | AV36: 1.14 | AW36: TRUE | AY36: II. | AZ36: Hyundai | BA36: 0.047 | BB36: 0.048 | BC36: 0.017 | BD36: 0.01 | BE36: 22 | BF36: II. | BO36: 1 | BP36: 2 | BQ36: 3 | BR36: 4 | BS36: 5 | BT36: 6 | BU36: 7 | BV36: 8 | BW36: 9 | BX36: 10 | BY36: 11
B37: =IF(D36=AI87,"zadaj počet mesiacov rozhodnej doby"," ") ->  | E37: od 108 mes. vrátane a viac | AE37: Periodicita platenia | AF37: koef. | AG37: lehotné | AI37: nepoisťuje sa | AJ37: 0 | AK37: 1 | AL37: návrh AKT | AM37: 25000.01 | AN37: 0.9 | AO37: Košice IV | AP37: 26 | AQ37: Košice IV | AR37: KE | AS37: 1.15 | AU37: 1 | AV37: 1.14 | AW37: TRUE | AY37: II. | AZ37: Chevrolet | BA37: 0.047 | BB37: 0.048 | BC37: 0.017 | BD37: 0.01 | BE37: 23 | BF37: II.
B38: Periodicita platenia poistného | D38: zadaj periodicitu platenia | E38: Koef. periodicity platenia | I38: =VLOOKUP($D$38,$AE$38:$AF$42,2,FALSE) -> 0 | L38: =$I$38 -> 0 | S38: =$I$38 -> 0 | V38: =$I$38 -> 0 | AE38: zadaj periodicitu platenia | AF38: 0 | AG38: 0 | AI38: spoluúčasť 0 EUR | AJ38: 0.1 | AK38: 2 | AL38: 0.035 | AM38: 29000.01 | AN38: 0.85 | AO38: Košice-okolie | AP38: 27 | AQ38: Košice-okolie | AR38: KS | AS38: 1.1 | AU38: 3 | AV38: 1.01 | AW38: TRUE | AY38: I. | AZ38: Chrysler | BA38: 0.047 | BB38: 0.048 | BC38: 0.017 | BD38: 0.01 | BE38: 24 | BF38: I.
B39: Celkové ročné poistné za zákl. poistenie MV | D39: =IF(ROUND(I34*I36,2)<I40,"276 - Priveľa zliav = RP upravené na úroveň Minimálne Poistné * Koef. period. platenia"," ") ->  | I39: =IF(OR(I36=0,I38=0),0,IF(ROUND(I34*I36,2)<I40,I40*I38,ROUND(I34*I36*I38,2))) -> 0 | L39: =ROUND(L34*L36*L38,2) -> 0 | S39: =IF(OR(S36=0,S38=0),0,IF(ROUND(S34*S36,2)<S40,S40*S38,ROUND(S34*S36*S38,2))) -> 0 | V39: =ROUND(V34*V36*V38,2) -> 0 | Z39: MENU | AE39: ročne | AF39: 1 | AG39: 1 | AI39: franšíza 199 EUR | AJ39: 0.08 | AK39: 3 | AL39: 0.03 | AM39: 37000.01 | AN39: 0.83 | AO39: Krupina | AP39: 28 | AQ39: Krupina | AR39: KA | AS39: 0.9 | AU39: 6 | AV39: 0.94 | AW39: TRUE | AY39: I. | AZ39: Infinity | BA39: 0.047 | BB39: 0.048 | BC39: 0.017 | BD39: 0.01 | BE39: 25 | BF39: I.
B40: Minimálne poistné za zákl. poistenie MV | I40: =IF(OR(I36=0,I38=0),0,ROUND(I25*0.3,2)) -> 0 | L40: =L34 -> 0 | S40: =IF(OR(S36=0,S38=0),0,ROUND(S25*0.3,2)) -> 0 | V40: =V34 -> 0 | AE40: polročne | AF40: 1.05 | AG40: 2 | AI40: spoluúčasť 5%, min. 16 EUR | AJ40: 0.07 | AK40: 4 | AL40: 0.02 | AM40: 42000.01 | AN40: 0.82 | AO40: Kysucké Nové Mesto | AP40: 29 | AQ40: Kysucké Nové Mesto | AR40: KM | AS40: 1.05 | AU40: 2 | AV40: 1.04 | AW40: TRUE | AY40: III. | AZ40: Isuzu | BA40: 0.047 | BB40: 0.048 | BC40: 0.017 | BD40: 0.01 | BE40: 26 | BF40: III. | BQ40: 2 x ZPS - AKCIA KASKO 5B
B41: Pripoistenia: | E41: PS | I41: Ročné poistné | AE41: štvrťročne | AF41: 1.1 | AG41: 4 | AM41: 54000.01 | AN41: 0.81 | AO41: Levice | AP41: 30 | AQ41: Levice | AR41: LV | AS41: 0.9 | AU41: 7 | AV41: 0.89 | AW41: TRUE | AY41: II. | AZ41: Iveco | BA41: 0.047 | BB41: 0.048 | BC41: 0.017 | BD41: 0.01 | BE41: 27 | BF41: II. | BP41: Násobok základných PS
B42: batožina | E42: 800 | I42: =IF(OR($AG$13=0,$AG$14=1),0,IF(OR($AG$14=2,$AG$14=3),VLOOKUP($E$42,$AI$17:$AJ$20,2,FALSE),VLOOKUP($E$42,$AI$17:$AJ$20,2,FALSE))) -> 0 | L42: =$I$42 -> 0 | P42: =E42 -> 800 | S42: =IF(AND($AG$15=1,P42=$AI$19),ROUND($AJ$19*(1-$AN$9),2),IF(OR($AG$13=0,$AG$14=1),0,IF(OR($AG$14=2,$AG$14=3),VLOOKUP($P$42,$AI$17:$AJ$20,2,FALSE),VLOOKUP($P$42,$AI$17:$AJ$20,2,FALSE)))) -> 0 | V42: =S42 -> 0 | AC42: akcia BAT | AD42: =IF(AND($AG$15=1,$P$42=$AI$19),1,0) -> 0 | AE42: jednorazovo | AF42: 1 | AG42: 1 | AM42: 59000.01 | AN42: 0.8 | AO42: Levoča | AP42: 31 | AQ42: Levoča | AR42: LE | AS42: 0.9 | AU42: 5 | AV42: 0.97 | AW42: TRUE | AY42: I. | AZ42: Jaguar | BA42: 0.047 | BB42: 0.048 | BC42: 0.017 | BD42: 0.01 | BE42: 28 | BF42: I. | BH42: MV (do 3,5 t) do 5 miest vrátane | BI42: Druh MV | BK42: A | BL42: B | BM42: C | BN42: D | BO42: nepoisťuje sa | BP42: 1 x ZPS | BQ42: 2 x ZPS | BR42: 3 x ZPS | BS42: 4 x zPS | BT42: 5 x ZPS | BU42: 6 x ZPS | BV42: 7 x ZPS | BW42: 8 x ZPS | BX42: 9 x ZPS | BY42: 10 x ZPS
B43: úraz (násobok základných PS) | E43: nepoisťuje sa | I43: =IF(AND(E43<>BO18,OR($AG$13=0,$AG$14=1)),"nepoistené",IF(AG14=2,INDEX($BO$43:$BY$59,VLOOKUP($D$13,$BI$43:$BZ$59,18,FALSE),HLOOKUP($E$43,$BO$42:$BY$60,19,FALSE)),IF(AG14=3,INDEX($BO$65:$BY$81,VLOOKUP($D$13,$BI$65:$BZ$81,18,FALSE),HLOOKUP($E$43,$BO$64:$BY$82,19,FALSE)),INDEX($BO$19:$BY$35,VLOOKUP($D$13,$BI$19:$BZ$35,18,FALSE),HLOOKUP($E$43,$BO$18:$BY$36,19,FALSE))))) -> 0 | L43: =$I$43 -> 0 | S43: =$I$43 -> 0 | V43: =$I$43 -> 0 | AC43: akcia CS | AD43: =IF(AND($AG$15=1,$P$45=$AI$40),1,0) -> 0 | AE43: ročne? | AF43: =IF(VLOOKUP($D$38,$AE$38:$AF$42,2,FALSE)=AF39,1,0) -> 0 | AG43: =VLOOKUP($D$38,$AE$38:$AG$42,3,FALSE) -> 0 | AM43: 100000.01 | AN43: 0.8 | AO43: Liptovský Mikuláš | AP43: 32 | AQ43: Liptovský Mikuláš | AR43: LM | AS43: 1 | AU43: 2 | AV43: 1.04 | AW43: TRUE | AY43: I. | AZ43: JEEP Motors | BA43: 0.047 | BB43: 0.048 | BC43: 0.017 | BD43: 0.01 | BE43: 29 | BF43: I. | BI43: zadaj druh MV | BJ43: 1 | BK43: 0 | BL43: 0 | BM43: 0 | BN43: 0 | BO43: 0 | BP43: 0 | BQ43: 0 | BR43: 0 | BS43: 0 | BT43: 0 | BU43: 0 | BV43: 0 | BW43: 0 | BX43: 0 | BY43: 0 | BZ43: 1
B44: preprava | E44: nepoisťuje sa | I44: =IF(OR($AG$13=0,$AG$14=1),0,VLOOKUP($E$44,$AK$24:$AL$28,2,FALSE)) -> 0 | L44: =$I$44 -> 0 | S44: =$I$44 -> 0 | V44: =$I$44 -> 0 | AC44: CS kód | AD44: =VLOOKUP(P45,AI37:AK40,3,FALSE) -> 4 | AE44: nízka splátka | AF44: =IF(OR(AND(I39<>0,AG43<>1,I61<AH44),AND(L39<>0,AG43<>1,L61<AH44)),1,0) ->  | AG44: =IF(OR(AND(S39<>0,AG43<>1,S61<AH44),AND(V39<>0,AG43<>1,V61<AH44)),1,0) ->  | AH44: 50 | AM44: 150000.01 | AN44: 100 | AO44: Lučenec | AP44: 33 | AQ44: Lučenec | AR44: LC | AS44: 0.9 | AU44: 3 | AV44: 1.01 | AW44: =EXACT(AO44,AQ44) -> TRUE | AY44: II. | AZ44: Kia | BA44: 0.047 | BB44: 0.048 | BC44: 0.017 | BD44: 0.01 | BE44: 30 | BF44: II. | BH44: MV (do 3,5 t) do 5 miest vrátane | BI44: MV (do 3,5 t) do 5 miest vrátane | BJ44: 2 | BK44: 0 | BL44: 0 | BM44: 0 | BN44: 0 | BO44: 0 | BP44: 5 | BQ44: 10 | BR44: 15 | BS44: 20 | BT44: 25 | BU44: 30 | BV44: 35 | BW44: 40 | BX44: 45 | BY44: 50 | BZ44: 2
B45: čelné sklo | C45: =IF(AND(E47<>AD66,AG65=1),"Vypočítaná PS GAP > 100 000 EUR. Poistenie GAP nie je možné dojednať"," ") ->  | E45: spoluúčasť 5%, min. 16 EUR | I45: =IF(AND(E45<>AI37,OR(AG13=0,AG14=1,AG14=6,AG14=7,AG14=8,AG14=9)),"nepoistené",ROUND(I16*VLOOKUP($E$45,$AI$37:$AJ$40,2,FALSE),2)) -> nepoistené | L45: =$I$45 -> nepoistené | P45: =E45 -> spoluúčasť 5%, min. 16 EUR | S45: =IF(AND($AG$15=1,$P$45=$AI$40),ROUND(S16*$AJ$39*(1-$AN$9),2),IF(OR(AG13=0,AG14=1,AG14=6,AG14=7,AG14=8,AG14=9),"nepoistené",ROUND(S16*VLOOKUP($P$45,$AI$37:$AJ$41,2,FALSE),2))) -> nepoistené | V45: =S45 -> nepoistené | AC45: pre malé PS | AO45: Malacky | AP45: 34 | AQ45: Malacky | AR45: MA | AS45: 1 | AU45: 3 | AV45: 1.01 | AW45: TRUE | AY45: II. | AZ45: Lada | BA45: 0.047 | BB45: 0.048 | BC45: 0.017 | BD45: 0.01 | BE45: 31 | BF45: II. | BH45: MV (do 3,5 t) 6-9 miest vrátane | BI45: MV (do 3,5 t) 6-9 miest vrátane | BJ45: 3 | BK45: 0 | BL45: 0 | BM45: 0 | BN45: 0 | BO45: 0 | BP45: 8.75 | BQ45: 17.5 | BR45: 26.25 | BS45: 35 | BT45: 43.75 | BU45: 52.5 | BV45: 61.25 | BW45: 70 | BX45: 78.75 | BY45: 87.5 | BZ45: 3
B46: náhradné vozidlo | E46: nepoisťuje sa | I46: =IF(AND(E46<>AI47,OR($AG$13=0,$AG$14=1)),"nepoistené",IF(AND($AG$14<>2,$AG$14<>3,$AG$14<>10,$E$46<>$AI$47),"nepoistené",VLOOKUP($E$46,$AI$47:$AJ$57,2,FALSE))) -> 0 | L46: =$I$46 -> 0 | S46: =$I$46 -> 0 | V46: =$I$46 -> 0 | AC46: spoluúčasť (motocykel) | AD46: Koef. spoluúčasti | AE46: spoluúčasť (do 3,5 t) | AF46: Koef. spoluúčasti | AG46: spoluúčasť (nad 3,5 t) | AH46: Koef. spoluúčasti | AI46: náhradné vozidlo | AJ46: NV poistné | AK46: kontrola NV | AM46: Vek držiteľa MV | AN46: Koef. | AO46: Martin | AP46: 35 | AQ46: Martin | AR46: MT | AS46: 1.05 | AU46: 1 | AV46: 1.14 | AW46: TRUE | AY46: II. | AZ46: Lancia | BA46: 0.047 | BB46: 0.048 | BC46: 0.017 | BD46: 0.01 | BE46: 32 | BF46: II. | BH46: MV (nad 3,5 t) do 5 miest vrátane | BI46: MV (nad 3,5 t) do 5 miest vrátane | BJ46: 4 | BK46: =$BK$10 -> 0.034 | BL46: =$BL$10 -> 0.0347 | BM46: =$BM$10 -> 0.0123 | BN46: =$BN$10 -> 0.0072 | BO46: 0 | BP46: 5 | BQ46: 10 | BR46: 15 | BS46: 20 | BT46: 25 | BU46: 30 | BV46: 35 | BW46: 40 | BX46: 45 | BY46: 50 | BZ46: 4
B47: GAP | C47: GAP PS (do PZ) | D47: =IF(AG64=1," ",AJ65) ->  | E47: nepoisťuje sa | I47: =IF(OR(E47=AD66, AG13=0,AG14=1),0,IF(AG64=1,"GAP nie je možné",ROUND($D$47*VLOOKUP($E$47,$AD$66:$AE$70,2,FALSE),2))) -> 0 | L47: =$I$47 -> 0 | S47: =$I$47 -> 0 | V47: =$I$47 -> 0 | AC47: zadaj dohodnutú spoluúčasť | AD47: 0 | AE47: zadaj dohodnutú spoluúčasť | AF47: 0 | AG47: zadaj dohodnutú spoluúčasť | AH47: 0 | AI47: nepoisťuje sa | AJ47: 0 | AK47: =IF(OR(AND(E46<>AI47,OR(AG13=0,AG14=1)),AND($AG$14<>2,$AG$14<>3,$AG$14<>10,$E$46<>$AI$47)),1,0) -> 0 | AM47: zadaj vek držiteľa MV | AN47: 0 | AO47: Medzilaborce | AP47: 36 | AQ47: Medzilaborce | AR47: ML | AS47: 1 | AU47: 7 | AV47: 0.89 | AW47: TRUE | AY47: I. | AZ47: Land Rover | BA47: 0.047 | BB47: 0.048 | BC47: 0.017 | BD47: 0.01 | BE47: 33 | BF47: I. | BH47: MV (nad 3,5 t) 6-9 miest vrátane | BI47: MV (nad 3,5 t) 6-9 miest vrátane | BJ47: 5 | BK47: =$BK$10 -> 0.034 | BL47: =$BL$10 -> 0.0347 | BM47: =$BM$10 -> 0.0123 | BN47: =$BN$10 -> 0.0072 | BO47: 0 | BP47: 8.75 | BQ47: 17.5 | BR47: 26.25 | BS47: 35 | BT47: 43.75 | BU47: 52.5 | BV47: 61.25 | BW47: 70 | BX47: 78.75 | BY47: 87.5 | BZ47: 5
C48: dátum prvej evidencie MV | E48: Držiteľ MV od | I48: =IF(AND($E$47<>$AD$66,OR($AG$66=1,$AG$67=1)),"GAP nie je možné"," ") ->  | L48: =$I$48 ->  | S48: =$I$48 ->  | V48: =$I$48 ->  | AC48: 5%, min. 66 EUR | AD48: 1.1 | AE48: 5%, min. 66 EUR | AF48: 1.1 | AG48: 10%, min. 66 EUR | AH48: 1.2 | AI48: Denný limit 35 EUR x 5 dní | AJ48: 24.95 | AM48: menej ako 22 rokov (nedovŕšených) | AN48: 1.5 | AO48: Michalovce | AP48: 37 | AQ48: Michalovce | AR48: MI | AS48: 1 | AU48: 2 | AV48: 1.04 | AW48: TRUE | AY48: II. | AZ48: Ligier | BA48: 0.047 | BB48: 0.048 | BC48: 0.017 | BD48: 0.01 | BE48: 34 | BF48: II. | BH48: náves | BI48: náves | BJ48: 6 | BK48: =$BK$11 -> 0.0315 | BL48: =$BL$11 -> 0.0322 | BM48: =$BM$11 -> 0.0114 | BN48: =$BN$11 -> 0.0067 | BO48: 0 | BP48: nepoistené | BQ48: nepoistené | BR48: nepoistené | BS48: nepoistené | BT48: nepoistené | BU48: nepoistené | BV48: nepoistené | BW48: nepoistené | BX48: nepoistené | BY48: nepoistené | BZ48: 6
B49: dátum prevzatia MV od predajcu podľa Preberacieho protokolu | E49: najazdené km | AC49: spoluúčasť 199 EUR | AD49: 1.05 | AE49: spoluúčasť 199 EUR | AF49: 1.05 | AG49: 10%, min. 165 EUR | AH49: 1.1 | AI49: Denný limit 35 EUR x 10 dní | AJ49: 47.82 | AM49: od 22 vrátane do 26 rokov (nedovŕšených) | AN49: 1.3 | AO49: Myjava | AP49: 38 | AQ49: Myjava | AR49: MY | AS49: 0.95 | AU49: 6 | AV49: 0.94 | AW49: TRUE | AY49: I. | AZ49: Lexus | BA49: 0.047 | BB49: 0.048 | BC49: 0.017 | BD49: 0.01 | BE49: 35 | BF49: I. | BH49: nákladný príves | BI49: nákladný príves | BJ49: 7 | BK49: =$BK$11 -> 0.0315 | BL49: =$BL$11 -> 0.0322 | BM49: =$BM$11 -> 0.0114 | BN49: =$BN$11 -> 0.0067 | BO49: 0 | BP49: nepoistené | BQ49: nepoistené | BR49: nepoistené | BS49: nepoistené | BT49: nepoistené | BU49: nepoistené | BV49: nepoistené | BW49: nepoistené | BX49: nepoistené | BY49: nepoistené | BZ49: 7
B50: Obvyklá cena GAP MV podľa Protokolu CEBIA | E50: Kúpna cena z FA / KPZ / ZoF | AC50: 5%, min. 165 EUR | AD50: 1 | AE50: 5%, min. 165 EUR | AF50: 1 | AG50: 10%, min. 330 EUR | AH50: 1 | AI50: Denný limit 50 EUR x 5 dní | AJ50: 35.64 | AM50: od 26 vrátane do 31 rokov (nedovŕšených) | AN50: 1.15 | AO50: Námestovo | AP50: 39 | AQ50: Námestovo | AR50: NO | AS50: 1.05 | AU50: 1 | AV50: 1.14 | AW50: TRUE | AY50: III. | AZ50: Mahindra | BA50: =VLOOKUP(AY50,$AZ$10:$BD$12,2,FALSE) -> 0.047 | BB50: =VLOOKUP(AY50,$AZ$10:$BD$12,3,FALSE) -> 0.048 | BC50: =VLOOKUP(AY50,$AZ$10:$BD$12,4,FALSE) -> 0.017 | BD50: =VLOOKUP(AY50,$AZ$10:$BD$12,5,FALSE) -> 0.01 | BE50: 36 | BF50: III. | BH50: príves za MV do 3,5 t | BI50: príves za MV do 3,5 t | BJ50: 8 | BK50: =$BK$11 -> 0.0315 | BL50: =$BL$11 -> 0.0322 | BM50: =$BM$11 -> 0.0114 | BN50: =$BN$11 -> 0.0067 | BO50: 0 | BP50: nepoistené | BQ50: nepoistené | BR50: nepoistené | BS50: nepoistené | BT50: nepoistené | BU50: nepoistené | BV50: nepoistené | BW50: nepoistené | BX50: nepoistené | BY50: nepoistené | BZ50: 8
B51: Ročné poistné za dodatkové pripoistenia | D51: =IF(AG74=0,"","Prever Obvyklú cenu a PS kasko") ->  | E51: =IF(AG73=0,"","Prever KC GAP a PS kasko") ->  | I51: =IF(OR(BZ18=1,AJ35=1,AK47=1,AH64=1),x,SUM(I42:I47)) ->  | L51: =IF(OR(BZ18=1,AJ35=1,AK47=1,AH64=1),x,SUM(L42:L47)) ->  | S51: =IF(OR(BZ18=1,AJ35=1,AK47=1,AH64=1),x,SUM(S42:S47)) ->  | V51: =IF(OR(BZ18=1,AJ35=1,AK47=1,AH64=1),x,SUM(V42:V47)) ->  | AC51: 5%, min. 330 EUR | AD51: 0.85 | AE51: 5%, min. 330 EUR | AF51: 0.85 | AG51: 10%, min. 500 EUR | AH51: 0.9 | AI51: Denný limit 50 EUR x 10 dní | AJ51: 68.31 | AM51: od 31 vrátane do 36 rokov (nedovŕšených) | AN51: 1.05 | AO51: Nitra | AP51: 40 | AQ51: Nitra | AR51: NR | AS51: 0.95 | AU51: 4 | AV51: 1 | AW51: TRUE | AY51: II. | AZ51: MAN | BA51: =VLOOKUP(AY51,$AZ$10:$BD$12,2,FALSE) -> 0.047 | BB51: =VLOOKUP(AY51,$AZ$10:$BD$12,3,FALSE) -> 0.048 | BC51: =VLOOKUP(AY51,$AZ$10:$BD$12,4,FALSE) -> 0.017 | BD51: =VLOOKUP(AY51,$AZ$10:$BD$12,5,FALSE) -> 0.01 | BE51: 37 | BF51: II. | BH51: obytný príves | BI51: obytný príves | BJ51: 9 | BK51: =$BK$14 -> 0.0492 | BL51: =$BL$14 -> 0.0502 | BM51: =$BM$14 -> 0.0178 | BN51: =$BN$14 -> 0.0105 | BO51: 0 | BP51: nepoistené | BQ51: nepoistené | BR51: nepoistené | BS51: nepoistené | BT51: nepoistené | BU51: nepoistené | BV51: nepoistené | BW51: nepoistené | BX51: nepoistené | BY51: nepoistené | BZ51: 9
B52: Periodicita platenia poistného | E52: Koef. periodicity platenia | I52: =I38 -> 0 | L52: =$I$52 -> 0 | S52: =$I$52 -> 0 | V52: =$I$52 -> 0 | AC52: pre veľké PS | AI52: Denný limit 70 EUR x 5 dní | AJ52: 49.9 | AM52: od 36 vrátane do 49 rokov (nedovŕšených) | AN52: 1 | AO52: Nové Mesto nad Váhom | AP52: 41 | AQ52: Nové Mesto nad Váhom | AR52: NM | AS52: 0.9 | AU52: 6 | AV52: 0.94 | AW52: TRUE | AY52: I. | AZ52: Maruti | BA52: 0.047 | BB52: 0.048 | BC52: 0.017 | BD52: 0.01 | BE52: 38 | BF52: I. | BH52: obytné MV do 3,5 t | BI52: obytné MV do 3,5 t | BJ52: 10 | BK52: =$BK$13 -> 0.0743 | BL52: =$BL$13 -> 0.0759 | BM52: =$BM$13 -> 0.0269 | BN52: =$BN$13 -> 0.0158 | BO52: 0 | BP52: 5 | BQ52: 10 | BR52: 15 | BS52: 20 | BT52: 25 | BU52: 30 | BV52: 35 | BW52: 40 | BX52: 45 | BY52: 50 | BZ52: 10
B53: Celkové ročné poistné za dodatkové pripoistenia | I53: =ROUND(I51*I52,2) ->  | L53: =ROUND(L51*L52,2) ->  | S53: =ROUND(S51*S52,2) ->  | V53: =ROUND(V51*V52,2) ->  | AC53: zadaj dohodnutú spoluúčasť | AD53: 0 | AE53: zadaj dohodnutú spoluúčasť | AF53: 0 | AG53: zadaj dohodnutú spoluúčasť | AH53: 0 | AI53: Denný limit 70 EUR x 10 dní | AJ53: 95.63 | AM53: od 49 vrátane do 71 rokov (nedovŕšených) | AN53: 0.95 | AO53: Nové Zámky | AP53: 42 | AQ53: Nové Zámky | AR53: NZ | AS53: 0.9 | AU53: 7 | AV53: 0.89 | AW53: TRUE | AY53: I. | AZ53: Maybach | BA53: 0.047 | BB53: 0.048 | BC53: 0.017 | BD53: 0.01 | BE53: 39 | BF53: I. | BH53: obytné MV nad 3,5 t | BI53: obytné MV nad 3,5 t | BJ53: 11 | BK53: =$BK$13 -> 0.0743 | BL53: =$BL$13 -> 0.0759 | BM53: =$BM$13 -> 0.0269 | BN53: =$BN$13 -> 0.0158 | BO53: 0 | BP53: 5 | BQ53: 10 | BR53: 15 | BS53: 20 | BT53: 25 | BU53: 30 | BV53: 35 | BW53: 40 | BX53: 45 | BY53: 50 | BZ53: 11
AC54: 5%, min. 165 EUR | AD54: 1 | AE54: 5%, min. 165 EUR | AF54: 1 | AG54: 10%, min. 330 EUR | AH54: 1 | AI54: Denný limit 85 EUR x 5 dní | AJ54: 60.59 | AM54: od 71 vrátane do 76 rokov (nedovŕšených) | AN54: 1.05 | AO54: Partizánske | AP54: 43 | AQ54: Partizánske | AR54: PE | AS54: 0.9 | AU54: 5 | AV54: 0.97 | AW54: TRUE | AY54: III. | AZ54: Mazda | BA54: 0.047 | BB54: 0.048 | BC54: 0.017 | BD54: 0.01 | BE54: 40 | BF54: III. | BH54: traktor | BI54: traktor | BJ54: 12 | BK54: =$BK$11 -> 0.0315 | BL54: =$BL$11 -> 0.0322 | BM54: =$BM$11 -> 0.0114 | BN54: =$BN$11 -> 0.0067 | BO54: 0 | BP54: 5 | BQ54: 10 | BR54: 15 | BS54: 20 | BT54: 25 | BU54: 30 | BV54: 35 | BW54: 40 | BX54: 45 | BY54: 50 | BZ54: 12
B55: Celkové ročné poistné (RP) vrátane dane | I55: =IF(I39=0,0,ROUND(I39+I53,2)) -> 0 | L55: =IF(L39=0,0,ROUND(L39+L53,2)) -> 0 | S55: =IF(S39=0,0,ROUND(S39+S53,2)) -> 0 | V55: =IF(V39=0,0,ROUND(V39+V53,2)) -> 0 | AC55: 5%, min. 330 EUR | AD55: 0.85 | AE55: 5%, min. 330 EUR | AF55: 0.85 | AG55: 10%, min. 500 EUR | AH55: 0.9 | AI55: Denný limit 85 EUR x 10 dní | AJ55: 116.13 | AM55: od 76 rokov vrátane a viac | AN55: 1.15 | AO55: Pezinok | AP55: 44 | AQ55: Pezinok | AR55: PK | AS55: 1 | AU55: 3 | AV55: 1.01 | AW55: TRUE | AY55: I. | AZ55: Mercedes-Benz | BA55: 0.047 | BB55: 0.048 | BC55: 0.017 | BD55: 0.01 | BE55: 41 | BF55: I. | BH55: pojazdný prac. stroj s EČV | BI55: pojazdný prac. stroj s EČV | BJ55: 13 | BK55: =$BK$15 -> 0.034 | BL55: =$BL$15 -> 0.0347 | BM55: =$BM$15 -> 0.0123 | BN55: =$BN$15 -> 0.0072 | BO55: 0 | BP55: 5 | BQ55: 10 | BR55: 15 | BS55: 20 | BT55: 25 | BU55: 30 | BV55: 35 | BW55: 40 | BX55: 45 | BY55: 50 | BZ55: 13
AI56: Denný limit 100 EUR x 5 dní | AJ56: 71.28 | AM56: SZČO | AN56: 0.98 | AO56: Piešťany | AP56: 45 | AQ56: Piešťany | AR56: PN | AS56: 0.9 | AU56: 6 | AV56: 0.94 | AW56: TRUE | AY56: III. | AZ56: MG | BA56: 0.047 | BB56: 0.048 | BC56: 0.017 | BD56: 0.01 | BE56: 42 | BF56: III. | BH56: autobus od 10-25 miest vrátane | BI56: autobus od 10-25 miest vrátane | BJ56: 14 | BK56: =$BK$10 -> 0.034 | BL56: =$BL$10 -> 0.0347 | BM56: =$BM$10 -> 0.0123 | BN56: =$BN$10 -> 0.0072 | BO56: 0 | BP56: 36.45 | BQ56: 72.9 | BR56: 109.35 | BS56: 145.8 | BT56: 182.25 | BU56: 218.7 | BV56: 255.15 | BW56: 291.6 | BX56: 328.05 | BY56: 364.5 | BZ56: 14
B57: z toho daň z poistenia | I57: =I55-I59 -> 0 | L57: =L55-L59 -> 0 | S57: =S55-S59 -> 0 | V57: =V55-V59 -> 0 | AI57: Denný limit 100 EUR x 10 dní | AJ57: 136.62 | AM57: právnické osoby (a.s., s.r.o., k.s. a pod.) | AN57: 1 | AO57: Poltár | AP57: 46 | AQ57: Poltár | AR57: PT | AS57: 0.9 | AU57: 4 | AV57: 1 | AW57: TRUE | AY57: III. | AZ57: Mini | BA57: 0.047 | BB57: 0.048 | BC57: 0.017 | BD57: 0.01 | BE57: 43 | BF57: III. | BH57: autobus nad 25 miest | BI57: autobus nad 25 miest | BJ57: 15 | BK57: =$BK$10 -> 0.034 | BL57: =$BL$10 -> 0.0347 | BM57: =$BM$10 -> 0.0123 | BN57: =$BN$10 -> 0.0072 | BO57: 0 | BP57: 65.59 | BQ57: 131.18 | BR57: 196.77 | BS57: 262.36 | BT57: 327.95 | BU57: 393.54 | BV57: 459.13 | BW57: 524.72 | BX57: 590.31 | BY57: 655.9 | BZ57: 15
AO58: Poprad | AP58: 47 | AQ58: Poprad | AR58: PP | AS58: 0.95 | AU58: 3 | AV58: 1.01 | AW58: TRUE | AY58: I. | AZ58: Mitsubishi | BA58: 0.047 | BB58: 0.048 | BC58: 0.017 | BD58: 0.01 | BE58: 44 | BF58: I. | BH58: motocyklel do 50 cm3 | BI58: motocyklel do 50 cm3 | BJ58: 16 | BK58: =$BK$12 -> 0.1476 | BL58: =$BL$12 -> 0.1507 | BM58: =$BM$12 -> 0.0534 | BN58: =$BN$12 -> 0.0314 | BO58: 0 | BP58: 2.6 | BQ58: 5.2 | BR58: 7.8 | BS58: 10.4 | BT58: 13 | BU58: 15.6 | BV58: 18.2 | BW58: 20.8 | BX58: 23.4 | BY58: 26 | BZ58: 16
B59: Celkové ročné poistné bez dane | I59: =ROUND(I55/1.08,2) -> 0 | L59: =ROUND(L55/1.08,2) -> 0 | S59: =ROUND(S55/1.08,2) -> 0 | V59: =ROUND(V55/1.08,2) -> 0 | AO59: Považská Bystrica | AP59: 48 | AQ59: Považská Bystrica | AR59: PB | AS59: 0.95 | AU59: 3 | AV59: 1.01 | AW59: TRUE | AY59: II. | AZ59: Moskvič | BA59: 0.047 | BB59: 0.048 | BC59: 0.017 | BD59: 0.01 | BE59: 45 | BF59: II. | BH59: motocyklel nad 50 cm3 | BI59: motocyklel nad 50 cm3 | BJ59: 17 | BK59: =$BK$12 -> 0.1476 | BL59: =$BL$12 -> 0.1507 | BM59: =$BM$12 -> 0.0534 | BN59: =$BN$12 -> 0.0314 | BO59: 0 | BP59: 5.11 | BQ59: 10.22 | BR59: 15.33 | BS59: 20.44 | BT59: 25.55 | BU59: 30.66 | BV59: 35.77 | BW59: 40.88 | BX59: 45.99 | BY59: 51.1 | BZ59: 17
AO60: Prešov | AP60: 49 | AQ60: Prešov | AR60: PO | AS60: 1.15 | AU60: 1 | AV60: 1.14 | AW60: TRUE | AY60: II. | AZ60: Nissan | BA60: 0.047 | BB60: 0.048 | BC60: 0.017 | BD60: 0.01 | BE60: 46 | BF60: II. | BO60: 1 | BP60: 2 | BQ60: 3 | BR60: 4 | BS60: 5 | BT60: 6 | BU60: 7 | BV60: 8 | BW60: 9 | BX60: 10 | BY60: 11
B61: Splátka poistného vrátane dane | D61: =IF(OR(AF44=1,AG44=1),"Nízka splátka - zníž frekvenciu platenia poistného"," ") ->  | I61: =ROUND(I55/VLOOKUP($D$38,$AE$38:$AG$42,3,FALSE),2) ->  | L61: =ROUND(L55/VLOOKUP($D$38,$AE$38:$AG$42,3,FALSE),2) ->  | S61: =ROUND(S55/VLOOKUP($D$38,$AE$38:$AG$42,3,FALSE),2) ->  | V61: =ROUND(V55/VLOOKUP($D$38,$AE$38:$AG$42,3,FALSE),2) ->  | AO61: Prievidza | AP61: 50 | AQ61: Prievidza | AR61: PD | AS61: 0.95 | AU61: 2 | AV61: 1.04 | AW61: TRUE | AY61: II. | AZ61: Oltcit | BA61: 0.047 | BB61: 0.048 | BC61: 0.017 | BD61: 0.01 | BE61: 47 | BF61: II.
AO62: Púchov | AP62: 51 | AQ62: Púchov | AR62: PU | AS62: 0.95 | AU62: 2 | AV62: 1.04 | AW62: TRUE | AY62: II. | AZ62: Opel | BA62: 0.047 | BB62: 0.048 | BC62: 0.017 | BD62: 0.01 | BE62: 48 | BF62: II. | BP62: 1 x ZPS - AKCIA KASKO 5B
AO63: Revúca | AP63: 52 | AQ63: Revúca | AR63: RA | AS63: 0.9 | AU63: 6 | AV63: 0.94 | AW63: TRUE | AY63: II. | AZ63: Peugeot | BA63: 0.047 | BB63: 0.048 | BC63: 0.017 | BD63: 0.01 | BE63: 49 | BF63: II. | BP63: Násobok základných PS
AF64: GAP výluka | AG64: =IF(OR(AG65=1,AG66=1,AG67=1,AG68=1,AG69=1,AG73=1,AJ9=1,AK9=1,F49=0,AND(D50>F10,AD85=0),AD79=1,AD82=1),1,0) -> 1 | AH64: =IF(AND($E$47<>$AD$66,$AG$64=1),1,0) -> 0 | AO64: Rimavská Sobota | AP64: 53 | AQ64: Rimavská Sobota | AR64: RS | AS64: 0.9 | AU64: 5 | AV64: 0.97 | AW64: TRUE | AY64: II. | AZ64: Piaggio | BA64: 0.047 | BB64: 0.048 | BC64: 0.017 | BD64: 0.01 | BE64: 50 | BF64: II. | BH64: MV (do 3,5 t) 6-9 miest vrátane | BI64: Druh MV | BK64: A | BL64: B | BM64: C | BN64: D | BO64: nepoisťuje sa | BP64: 1 x ZPS | BQ64: 2 x ZPS | BR64: 3 x ZPS | BS64: 4 x zPS | BT64: 5 x ZPS | BU64: 6 x ZPS | BV64: 7 x ZPS | BW64: 8 x ZPS | BX64: 9 x ZPS | BY64: 10 x ZPS
B65: STANOVENIE PML ku dňu | D65: =F9 -> 2024-01-01 | E65: dátum prvej evidencie MV | I65: PML = | L65: =IF(F65=0,0,IF(OR(AJ72=1,AK73=1),"Oprav dátumy",AJ75)) -> 0 | AD65: GAP | AE65: GAP poistné | AF65: GAP PS | AG65: =IF(AJ65>AH65,1,0) -> 0 | AH65: 100000 | AI65: max. PS GAP | AJ65: =IF(AD85=1,F50,MIN(AG71,AG72)) -> 0 | AK65: GAP PS výpočet | AO65: Rožňava | AP65: 54 | AQ65: Rožňava | AR65: RV | AS65: 0.9 | AU65: 5 | AV65: 0.97 | AW65: TRUE | AY65: I. | AZ65: Porsche | BA65: 0.047 | BB65: 0.048 | BC65: 0.017 | BD65: 0.01 | BE65: 51 | BF65: I. | BI65: zadaj druh MV | BJ65: 1 | BK65: 0 | BL65: 0 | BM65: 0 | BN65: 0 | BO65: 0 | BP65: 0 | BQ65: 0 | BR65: 0 | BS65: 0 | BT65: 0 | BU65: 0 | BV65: 0 | BW65: 0 | BX65: 0 | BY65: 0 | BZ65: 1
AD66: nepoisťuje sa | AE66: 0 | AF66: rok výroby | AG66: =IF(E47=AD66,0,IF(OR(YEARFRAC(F9,D48)>5,D48>F9,D48>F48),1,0)) -> 0 | AH66: =YEARFRAC(F9,D48) -> 124.0027778 | AO66: Ružomberok | AP66: 55 | AQ66: Ružomberok | AR66: RK | AS66: 1 | AU66: 3 | AV66: 1.01 | AW66: TRUE | AY66: III. | AZ66: Proton | BA66: 0.047 | BB66: 0.048 | BC66: 0.017 | BD66: 0.01 | BE66: 52 | BF66: III. | BH66: MV (do 3,5 t) do 5 miest vrátane | BI66: MV (do 3,5 t) do 5 miest vrátane | BJ66: 2 | BK66: 0 | BL66: 0 | BM66: 0 | BN66: 0 | BO66: 0 | BP66: 5 | BQ66: 10 | BR66: 15 | BS66: 20 | BT66: 25 | BU66: 30 | BV66: 35 | BW66: 40 | BX66: 45 | BY66: 50 | BZ66: 2
B67: Vstupná obhliadka MV | C67: najazdené km | E67: dátum prevzatia MV od predajcu podľa Preberacieho protokolu | AD67: Variant A (3 r. 100 %) | AE67: 0.009 | AF67: zápis držiteľa MV | AG67: =IF(E47=AD66,0,IF(OR(YEARFRAC(F9,F48)>0.25,F48>F9,D48>F48),1,0)) -> 0 | AH67: =YEARFRAC(F9,F48) -> 124.0027778 | AO67: Sabinov | AP67: 56 | AQ67: Sabinov | AR67: SB | AS67: 1.1 | AU67: 3 | AV67: 1.01 | AW67: TRUE | AY67: II. | AZ67: Renault | BA67: 0.047 | BB67: 0.048 | BC67: 0.017 | BD67: 0.01 | BE67: 53 | BF67: II. | BH67: MV (do 3,5 t) 6-9 miest vrátane | BI67: MV (do 3,5 t) 6-9 miest vrátane | BJ67: 3 | BK67: 0 | BL67: 0 | BM67: 0 | BN67: 0 | BO67: 0 | BP67: 8.75 | BQ67: 17.5 | BR67: 26.25 | BS67: 35 | BT67: 43.75 | BU67: 52.5 | BV67: 61.25 | BW67: 70 | BX67: 78.75 | BY67: 87.5 | BZ67: 3
B68: =IF(OR(D67=0,AND(I67=0,D67<=AG7))," ",IF(OR(AD79=1,AD81=1,AD82=1),"UPRAV VSTUPNÉ ÚDAJE!!!",IF(OR(AD80=1,AD83=1),"VSTUPNÁ OBHLIADKA JE NUTNÁ, MV JE OJAZDENÉ, nahláste ojazdené MV na obhliadku, inak PZ nenadobudne účinnosť!!!",IF(AND(AD79=0,AD80=0,AD81=0,AD82=0,AD83=0),"VSTUPNÁ OBHLIADKA nie je potrebná, MV JE NOVÉ.","???")))) ->  | AD68: Variant B (4 r. 100 %) | AE68: 0.0107 | AF68: druh MV | AG68: =IF(AND($AG$14<>2,$AG$14<>3,$AG$14<>10),1,0) -> 1 | AO68: Senec | AP68: 57 | AQ68: Senec | AR68: SC | AS68: 1 | AU68: 5 | AV68: 0.97 | AW68: TRUE | AY68: I. | AZ68: Rover | BA68: 0.047 | BB68: 0.048 | BC68: 0.017 | BD68: 0.01 | BE68: 54 | BF68: I. | BH68: MV (nad 3,5 t) do 5 miest vrátane | BI68: MV (nad 3,5 t) do 5 miest vrátane | BJ68: 4 | BK68: =$BK$10 -> 0.034 | BL68: =$BL$10 -> 0.0347 | BM68: =$BM$10 -> 0.0123 | BN68: =$BN$10 -> 0.0072 | BO68: 0 | BP68: 5 | BQ68: 10 | BR68: 15 | BS68: 20 | BT68: 25 | BU68: 30 | BV68: 35 | BW68: 40 | BX68: 45 | BY68: 50 | BZ68: 4
AC69: Nebonus / Bonus | AD69: Variant C (5 r. 100 %) | AE69: 0.0132 | AF69: použivanie MV | AG69: =IF(OR(AND($AK$31<>2,$AK$31<>5),AND($AK$32<>1,$AK$32<>2,$AK$32<>5)),1,0) -> 1 | AO69: Senica | AP69: 58 | AQ69: Senica | AR69: SE | AS69: 0.95 | AU69: 7 | AV69: 0.89 | AW69: TRUE | AY69: I. | AZ69: Saab | BA69: 0.047 | BB69: 0.048 | BC69: 0.017 | BD69: 0.01 | BE69: 55 | BF69: I. | BH69: MV (nad 3,5 t) 6-9 miest vrátane | BI69: MV (nad 3,5 t) 6-9 miest vrátane | BJ69: 5 | BK69: =$BK$10 -> 0.034 | BL69: =$BL$10 -> 0.0347 | BM69: =$BM$10 -> 0.0123 | BN69: =$BN$10 -> 0.0072 | BO69: 0 | BP69: 8.75 | BQ69: 17.5 | BR69: 26.25 | BS69: 35 | BT69: 43.75 | BU69: 52.5 | BV69: 61.25 | BW69: 70 | BX69: 78.75 | BY69: 87.5 | BZ69: 5
B70: Záznamy ÚNP | AD70: Variant D (3 r. 100 %, 4.r. 70 %, 5. r. 50 %) | AE70: 0.0093 | AF70: CEBIA | AG70: =D50 -> 0 | AO70: Skalica | AP70: 59 | AQ70: Skalica | AR70: SI | AS70: 0.95 | AU70: 7 | AV70: 0.89 | AW70: TRUE | AY70: II. | AZ70: Seat | BA70: 0.047 | BB70: 0.048 | BC70: 0.017 | BD70: 0.01 | BE70: 56 | BF70: II. | BH70: náves | BI70: náves | BJ70: 6 | BK70: =$BK$11 -> 0.0315 | BL70: =$BL$11 -> 0.0322 | BM70: =$BM$11 -> 0.0114 | BN70: =$BN$11 -> 0.0067 | BO70: 0 | BP70: nepoistené | BQ70: nepoistené | BR70: nepoistené | BS70: nepoistené | BT70: nepoistené | BU70: nepoistené | BV70: nepoistené | BW70: nepoistené | BX70: nepoistené | BY70: nepoistené | BZ70: 6
F71: Netto sadzba za MV | I71: =IF($AG$11=1,0,ROUND(I39/$I$10,6)) ->  | L71: =IF($AG$11=1,0,ROUND(L39/$I$10,6)) ->  | P71: Netto sadzba za MV | S71: =IF($AG$11=1,0,ROUND(S39/$I$10,6)) ->  | V71: =IF($AG$11=1,0,ROUND(V39/$I$10,6)) ->  | AF71: 105% CEBIA | AG71: =ROUND(D50*1.05,2) -> 0 | AO71: Snina | AP71: 60 | AQ71: Snina | AR71: SV | AS71: 1 | AU71: 7 | AV71: 0.89 | AW71: TRUE | AY71: I. | AZ71: Smart | BA71: 0.047 | BB71: 0.048 | BC71: 0.017 | BD71: 0.01 | BE71: 57 | BF71: I. | BH71: nákladný príves | BI71: nákladný príves | BJ71: 7 | BK71: =$BK$11 -> 0.0315 | BL71: =$BL$11 -> 0.0322 | BM71: =$BM$11 -> 0.0114 | BN71: =$BN$11 -> 0.0067 | BO71: 0 | BP71: nepoistené | BQ71: nepoistené | BR71: nepoistené | BS71: nepoistené | BT71: nepoistené | BU71: nepoistené | BV71: nepoistené | BW71: nepoistené | BX71: nepoistené | BY71: nepoistené | BZ71: 7
F72: Minimálne poistné | I72: =IF($AG$11=1,0,ROUND(I40/$I$10,6)) ->  | L72: =IF($AG$11=1,0,ROUND(L40/$I$10,6)) ->  | P72: Minimálne poistné | S72: =IF($AG$11=1,0,ROUND(S40/$I$10,6)) ->  | V72: =IF($AG$11=1,0,ROUND(V40/$I$10,6)) ->  | AF72: KC / KPZ | AG72: =F50 -> 0 | AI72: kontrola s PML | AJ72: =IF(AND($E$47<>$AD$66,F65<>0,F65<>D48),1,0) -> 0 | AO72: Sobrance | AP72: 61 | AQ72: Sobrance | AR72: SO | AS72: 1 | AU72: 5 | AV72: 0.97 | AW72: TRUE | AY72: III. | AZ72: SsangYong | BA72: 0.047 | BB72: 0.048 | BC72: 0.017 | BD72: 0.01 | BE72: 58 | BF72: III. | BH72: príves za MV do 3,5 t | BI72: príves za MV do 3,5 t | BJ72: 8 | BK72: =$BK$11 -> 0.0315 | BL72: =$BL$11 -> 0.0322 | BM72: =$BM$11 -> 0.0114 | BN72: =$BN$11 -> 0.0067 | BO72: 0 | BP72: nepoistené | BQ72: nepoistené | BR72: nepoistené | BS72: nepoistené | BT72: nepoistené | BU72: nepoistené | BV72: nepoistené | BW72: nepoistené | BX72: nepoistené | BY72: nepoistené | BZ72: 8
F73: Netto s pripoisteniami | I73: =IF($AG$11=1,0,ROUND(I55/$I$10,6)) ->  | L73: =IF($AG$11=1,0,ROUND(L55/$I$10,6)) ->  | P73: Netto s pripoisteniami | S73: =IF($AG$11=1,0,ROUND(S55/$I$10,6)) ->  | V73: =IF($AG$11=1,0,ROUND(V55/$I$10,6)) ->  | AF73: KC > PS | AG73: =IF(AND($E$47<>$AD$66,F50>F10),1,0) -> 0 | AI73: Rok Výroby | AJ73: =F65 -> 00:00:00 | AK73: =IF(AJ74<AJ73,1,0) -> 0 | AL73: =_xlfn.DAYS(AJ74,AJ73) -> 45292 | AO73: Spišská Nová Ves | AP73: 62 | AQ73: Spišská Nová Ves | AR73: SN | AS73: 0.9 | AU73: 5 | AV73: 0.97 | AW73: TRUE | AY73: III. | AZ73: Subaru | BA73: 0.047 | BB73: 0.048 | BC73: 0.017 | BD73: 0.01 | BE73: 59 | BF73: III. | BH73: obytný príves | BI73: obytný príves | BJ73: 9 | BK73: =$BK$14 -> 0.0492 | BL73: =$BL$14 -> 0.0502 | BM73: =$BM$14 -> 0.0178 | BN73: =$BN$14 -> 0.0105 | BO73: 0 | BP73: nepoistené | BQ73: nepoistené | BR73: nepoistené | BS73: nepoistené | BT73: nepoistené | BU73: nepoistené | BV73: nepoistené | BW73: nepoistené | BX73: nepoistené | BY73: nepoistené | BZ73: 9
AF74: ObC > PS | AG74: =IF(AND($E$47<>$AD$66,AD85=0,D50>F10),1,0) -> 0 | AI74: účinnosť | AJ74: =F9 -> 2024-01-01 | AL74: =DAYS360(AJ73,AJ74,TRUE) -> 44641 | AO74: Stará Ľubovňa | AP74: 63 | AQ74: Stará Ľubovňa | AR74: SL | AS74: 0.95 | AU74: 2 | AV74: 1.04 | AW74: TRUE | AY74: II. | AZ74: Suzuki | BA74: 0.047 | BB74: 0.048 | BC74: 0.017 | BD74: 0.01 | BE74: 60 | BF74: II. | BH74: obytné MV do 3,5 t | BI74: obytné MV do 3,5 t | BJ74: 10 | BK74: =$BK$13 -> 0.0743 | BL74: =$BL$13 -> 0.0759 | BM74: =$BM$13 -> 0.0269 | BN74: =$BN$13 -> 0.0158 | BO74: 0 | BP74: 5 | BQ74: 10 | BR74: 15 | BS74: 20 | BT74: 25 | BU74: 30 | BV74: 35 | BW74: 40 | BX74: 45 | BY74: 50 | BZ74: 10
P75: Bežné ročné poistné (bez akcie) je vyššie o | S75: =ROUND($I$55/S$55,4)-1 ->  | V75: =ROUND($L$55/V$55,4)-1 ->  | AI75: PML | AJ75: =IF(YEARFRAC(AJ73,AJ74,0)<=1,F10,IF(YEARFRAC(AJ73,AJ74,0)<=2,ROUND(F10*0.85,2),IF(YEARFRAC(AJ73,AJ74,0)<=3,ROUND(F10*0.75,2),IF(YEARFRAC(AJ73,AJ74,0)<=4,ROUND(F10*0.65,2),IF(YEARFRAC(AJ73,AJ74,0)<=5,ROUND(F10*0.55,2),IF(YEARFRAC(AJ73,AJ74,0)<=6,ROUND(F10*0.45,2),ROUND(F10*0.35,2))))))) -> 0 | AL75: =DAYS360(AJ73,AJ74,FALSE) -> 44641 | AO75: Stropkov | AP75: 64 | AQ75: Stropkov | AR75: SP | AS75: 1 | AU75: 4 | AV75: 1 | AW75: TRUE | AY75: II. | AZ75: Škoda - ostatné | BA75: 0.047 | BB75: 0.048 | BC75: 0.017 | BD75: 0.01 | BE75: 61 | BF75: II. | BH75: obytné MV nad 3,5 t | BI75: obytné MV nad 3,5 t | BJ75: 11 | BK75: =$BK$13 -> 0.0743 | BL75: =$BL$13 -> 0.0759 | BM75: =$BM$13 -> 0.0269 | BN75: =$BN$13 -> 0.0158 | BO75: 0 | BP75: 5 | BQ75: 10 | BR75: 15 | BS75: 20 | BT75: 25 | BU75: 30 | BV75: 35 | BW75: 40 | BX75: 45 | BY75: 50 | BZ75: 11
AO76: Svidník | AP76: 65 | AQ76: Svidník | AR76: SK | AS76: 1 | AU76: 4 | AV76: 1 | AW76: =EXACT(AO76,AQ76) -> TRUE | AY76: II. | AZ76: Škoda Fabia | BA76: 0.047 | BB76: 0.048 | BC76: 0.017 | BD76: 0.01 | BE76: 62 | BF76: II. | BH76: traktor | BI76: traktor | BJ76: 12 | BK76: =$BK$11 -> 0.0315 | BL76: =$BL$11 -> 0.0322 | BM76: =$BM$11 -> 0.0114 | BN76: =$BN$11 -> 0.0067 | BO76: 0 | BP76: 5 | BQ76: 10 | BR76: 15 | BS76: 20 | BT76: 25 | BU76: 30 | BV76: 35 | BW76: 40 | BX76: 45 | BY76: 50 | BZ76: 12
AO77: Šaľa | AP77: 66 | AQ77: Šaľa | AR77: SA | AS77: 0.9 | AU77: 7 | AV77: 0.89 | AW77: TRUE | AY77: II. | AZ77: Škoda Felícia | BA77: 0.047 | BB77: 0.048 | BC77: 0.017 | BD77: 0.01 | BE77: 63 | BF77: II. | BH77: pojazdný prac. stroj s EČV | BI77: pojazdný prac. stroj s EČV | BJ77: 13 | BK77: =$BK$15 -> 0.034 | BL77: =$BL$15 -> 0.0347 | BM77: =$BM$15 -> 0.0123 | BN77: =$BN$15 -> 0.0072 | BO77: 0 | BP77: 5 | BQ77: 10 | BR77: 15 | BS77: 20 | BT77: 25 | BU77: 30 | BV77: 35 | BW77: 40 | BX77: 45 | BY77: 50 | BZ77: 13
AD78: NOVÉ/OJAZDENÉ MV (Vstupná obhliadka) | AM78: Výkon MV | AN78: Koef. | AO78: Topoľčany | AP78: 67 | AQ78: Topoľčany | AR78: TO | AS78: 0.9 | AU78: 7 | AV78: 0.89 | AW78: TRUE | AY78: II. | AZ78: Škoda Octavia | BA78: 0.047 | BB78: 0.048 | BC78: 0.017 | BD78: 0.01 | BE78: 64 | BF78: II. | BH78: autobus od 10-25 miest vrátane | BI78: autobus od 10-25 miest vrátane | BJ78: 14 | BK78: =$BK$10 -> 0.034 | BL78: =$BL$10 -> 0.0347 | BM78: =$BM$10 -> 0.0123 | BN78: =$BN$10 -> 0.0072 | BO78: 0 | BP78: 36.45 | BQ78: 72.9 | BR78: 109.35 | BS78: 145.8 | BT78: 182.25 | BU78: 218.7 | BV78: 255.15 | BW78: 291.6 | BX78: 328.05 | BY78: 364.5 | BZ78: 14
AD79: =IF(AND(E47<>AD66,D67<>0,D67<>F49),1,0) -> 0 | AE79: km iné ako v GAP | AJ79: =YEARFRAC(AJ73,AJ74,0) -> 124.0027778 | AK79: 0 | AM79: zadaj výkon MV | AN79: 0 | AO79: Trebišov | AP79: 68 | AQ79: Trebišov | AR79: TV | AS79: 1 | AU79: 5 | AV79: 0.97 | AW79: TRUE | AY79: I. | AZ79: Škoda Superb | BA79: 0.047 | BB79: 0.048 | BC79: 0.017 | BD79: 0.01 | BE79: 65 | BF79: I. | BH79: autobus nad 25 miest | BI79: autobus nad 25 miest | BJ79: 15 | BK79: =$BK$10 -> 0.034 | BL79: =$BL$10 -> 0.0347 | BM79: =$BM$10 -> 0.0123 | BN79: =$BN$10 -> 0.0072 | BO79: 0 | BP79: 65.59 | BQ79: 131.18 | BR79: 196.77 | BS79: 262.36 | BT79: 327.95 | BU79: 393.54 | BV79: 459.13 | BW79: 524.72 | BX79: 590.31 | BY79: 655.9 | BZ79: 15
AD80: =IF(AND(D67<>0,D67>AG7),1,0) -> 0 | AE80: km viac ako 50 | AJ80: =YEARFRAC(AJ73,AJ74,1) -> 124.0034169 | AK80: 1 | AM80: do 61 kW vrátane | AN80: 0.9 | AO80: Trenčín | AP80: 69 | AQ80: Trenčín | AR80: TN | AS80: 0.9 | AU80: 2 | AV80: 1.04 | AW80: TRUE | AY80: I. | AZ80: Talbot | BA80: 0.047 | BB80: 0.048 | BC80: 0.017 | BD80: 0.01 | BE80: 66 | BF80: I. | BH80: motocyklel do 50 cm3 | BI80: motocyklel do 50 cm3 | BJ80: 16 | BK80: =$BK$12 -> 0.1476 | BL80: =$BL$12 -> 0.1507 | BM80: =$BM$12 -> 0.0534 | BN80: =$BN$12 -> 0.0314 | BO80: 0 | BP80: 2.6 | BQ80: 5.2 | BR80: 7.8 | BS80: 10.4 | BT80: 13 | BU80: 15.6 | BV80: 18.2 | BW80: 20.8 | BX80: 23.4 | BY80: 26 | BZ80: 16
AD81: =IF(I67>F9,1,0) -> 0 | AE81: prevzatie neskôr ako účinnosť | AJ81: =YEARFRAC(AJ73,AJ74,2) -> 125.8111111 | AK81: 2 | AM81: 61,01 kW – 93 kW vrátane | AN81: 0.95 | AO81: Trnava | AP81: 70 | AQ81: Trnava | AR81: TT | AS81: 1 | AU81: 2 | AV81: 1.04 | AW81: TRUE | AY81: III. | AZ81: Tata | BA81: 0.047 | BB81: 0.048 | BC81: 0.017 | BD81: 0.01 | BE81: 67 | BF81: =AY81 -> III. | BH81: motocyklel nad 50 cm3 | BI81: motocyklel nad 50 cm3 | BJ81: 17 | BK81: =$BK$12 -> 0.1476 | BL81: =$BL$12 -> 0.1507 | BM81: =$BM$12 -> 0.0534 | BN81: =$BN$12 -> 0.0314 | BO81: 0 | BP81: 5.11 | BQ81: 10.22 | BR81: 15.33 | BS81: 20.44 | BT81: 25.55 | BU81: 30.66 | BV81: 35.77 | BW81: 40.88 | BX81: 45.99 | BY81: 51.1 | BZ81: 17
AD82: =IF(AND(E47<>AD66,I67<>0,I67<>D49),1,0) -> 0 | AE82: prevzatie iné ako GAP | AJ82: =YEARFRAC(AJ73,AJ74,3) -> 124.0876712 | AK82: 3 | AM82: 93,01 kW – 105 kW vrátane | AN82: 1 | AO82: Turčianske Teplice | AP82: 71 | AQ82: Turčianske Teplice | AR82: TR | AS82: 1.05 | AU82: 2 | AV82: 1.04 | AW82: TRUE | AY82: II. | AZ82: TATRA | BA82: 0.047 | BB82: 0.048 | BC82: 0.017 | BD82: 0.01 | BE82: 68 | BF82: II. | BO82: 1 | BP82: 2 | BQ82: 3 | BR82: 4 | BS82: 5 | BT82: 6 | BU82: 7 | BV82: 8 | BW82: 9 | BX82: 10 | BY82: 11
AD83: =IF((F9-I67)>AG8,1,0) -> 1 | AE83: prevzatia viac ako 1 deň | AJ83: =YEARFRAC(AJ73,AJ74,4) -> 124.0027778 | AK83: 4 | AM83: 105,01 kW – 174 kW vrátane | AN83: 1.05 | AO83: Tvrdošín | AP83: 72 | AQ83: Tvrdošín | AR83: TS | AS83: 1.05 | AU83: 2 | AV83: 1.04 | AW83: TRUE | AY83: II. | AZ83: TAZ | BA83: =VLOOKUP(AY83,$AZ$10:$BD$12,2,FALSE) -> 0.047 | BB83: =VLOOKUP(AY83,$AZ$10:$BD$12,3,FALSE) -> 0.048 | BC83: =VLOOKUP(AY83,$AZ$10:$BD$12,4,FALSE) -> 0.017 | BD83: =VLOOKUP(AY83,$AZ$10:$BD$12,5,FALSE) -> 0.01 | BE83: 69 | BF83: II.
AD84: =IF(D67=0,1,0) -> 1 | AE84: nezadané km / nazobraz dni | AM84: 174,01 kW a viac | AN84: 1.1 | AO84: Veľký Krtíš | AP84: 73 | AQ84: Veľký Krtíš | AR84: VK | AS84: 0.9 | AU84: 7 | AV84: 0.89 | AW84: TRUE | AY84: III. | AZ84: Toyota | BA84: 0.047 | BB84: 0.048 | BC84: 0.017 | BD84: 0.01 | BE84: 70 | BF84: III.
AD85: =IF(AND(E47<>AD66,F49<>0,F49<=AG7),1,0) -> 0 | AE85: km menej ako 50 v GAP | AH85: Bonus | AI85: Bonus | AJ85: =IF(D36=AI86,VLOOKUP(F35,AI90:AJ95,2,FALSE),VLOOKUP(E37,AG86:AH95,2,FALSE)) -> 0 | AO85: Vranov nad Topľou | AP85: 74 | AQ85: Vranov nad Topľou | AR85: VT | AS85: 1 | AU85: 6 | AV85: 0.94 | AW85: TRUE | AY85: II. | AZ85: VAB | BA85: 0.047 | BB85: 0.048 | BC85: 0.017 | BD85: 0.01 | BE85: 71 | BF85: II.
AG86: od mínus do 12 mes. | AH86: 0 | AI86: rozhodná doba čestne prehlásená | AO86: Zlaté Moravce | AP86: 75 | AQ86: Zlaté Moravce | AR86: ZM | AS86: 0.9 | AU86: 7 | AV86: 0.89 | AW86: TRUE | AY86: II. | AZ86: VAZ | BA86: 0.047 | BB86: 0.048 | BC86: 0.017 | BD86: 0.01 | BE86: 72 | BF86: II.
AG87: od 12 vrátane do 24 mes. | AH87: 0.1 | AI87: rozhodná doba prevzatá | AJ87: 0 | AO87: Zvolen | AP87: 76 | AQ87: Zvolen | AR87: ZV | AS87: 0.95 | AU87: 3 | AV87: 1.01 | AW87: TRUE | AY87: II. | AZ87: Volga | BA87: 0.047 | BB87: 0.048 | BC87: 0.017 | BD87: 0.01 | BE87: 73 | BF87: II.
AG88: od 24 vrátane do 36 mes. | AH88: 0.2 | AO88: Žarnovica | AP88: 77 | AQ88: Žarnovica | AR88: ZC | AS88: 0.9 | AU88: 7 | AV88: 0.89 | AW88: TRUE | AY88: II. | AZ88: Volkswagen | BA88: 0.047 | BB88: 0.048 | BC88: 0.017 | BD88: 0.01 | BE88: 74 | BF88: II.
AE89: škodový priebeh | AF89: NZ | AG89: od 36 vrátane do 48 mes. | AH89: 0.3 | AO89: Žiar nad Hronom | AP89: 78 | AQ89: Žiar nad Hronom | AR89: ZH | AS89: 0.9 | AU89: 4 | AV89: 1 | AW89: TRUE | AY89: II. | AZ89: Volvo | BA89: 0.047 | BB89: 0.048 | BC89: 0.017 | BD89: 0.01 | BE89: 75 | BF89: II.
AE90: zadaj počet PU | AF90: 0 | AG90: od 48 vrátane do 60 mes. | AH90: 0.4 | AI90: zadaj počet PU | AJ90: 0 | AO90: Žilina | AP90: 79 | AQ90: Žilina | AR90: ZA | AS90: 1.05 | AU90: 1 | AV90: 1.14 | AW90: TRUE | AY90: II. | AZ90: Yugo | BA90: 0.047 | BB90: 0.048 | BC90: 0.017 | BD90: 0.01 | BE90: 76 | BF90: II.
AE91: 0 | AF91: 0.4 | AG91: od 60 vrátane do 72 mes. | AH91: 0.5 | AI91: 0 | AJ91: 0.4 | AY91: II. | AZ91: ZAZ | BA91: 0.047 | BB91: 0.048 | BC91: 0.017 | BD91: 0.01 | BE91: 77 | BF91: II.
AE92: 1 | AF92: 0.3 | AG92: od 72 vrátane do 84 mes. | AH92: 0.55 | AI92: 1 | AJ92: 0.3 | AQ92: Okres | AR92: Koef. | AY92: II. | AZ92: ZIL | BA92: 0.047 | BB92: 0.048 | BC92: 0.017 | BD92: 0.01 | BE92: 78 | BF92: II.
AE93: 2 | AF93: 0.2 | AG93: od 84 vrátane do 96 mes. | AH93: 0.6 | AI93: 2 | AJ93: 0.2 | AQ93: 1 | AR93: 1.15 | AT93: TOP - KE, PV | BA93: 1 | BB93: 2 | BC93: 3 | BD93: 4 | BE93: 79
AE94: 3 | AF94: 0.1 | AG94: od 96 vrátane do 108 mes. | AH94: 0.65 | AI94: 3 | AJ94: 0.1 | AQ94: 2 | AR94: 1.1 | AT94: VERY HIGH - BA, KS, SB
AE95: 4 a viac | AF95: 0 | AG95: od 108 mes. vrátane a viac | AH95: 0.7 | AI95: 4 a viac | AJ95: 0 | AQ95: 3 | AR95: 1.05 | AT95: HIGH - ZA, MT, Kysuce, Turiec, Orava, BS
AQ96: 4 | AR96: 1 | AT96: MID - TT, BA okolie, Liptov, Východ, BY
AQ97: 5 | AR97: 0.95 | AT97: LOW - NR, PD, BB, ZV, PP, PB, PU, Záhorie, Zatatrie, DT, BR, GL
AC98: Akcia (B+do 3,5 t+II+III) | AE98: bez ČS | AF98: s ČS | AK98: prevodník veku | AQ98: 6 | AR98: 0.9 | AT98: BOTTOM - TN, Spiš, Podunaj, Juh, Dolný Váh, Dolný Hron, Ponitrie
AC99: 5%, min. 165 EUR | AD99: 0 | AE99: 1 | AF99: 1 | AK99: Vek držiteľa MV | AL99: Koef. | AM99: Vek držiteľa MV | AN99: Koef.
AC100: spoluúčasť 199 EUR | AD100: 0 | AE100: 1.05 | AF100: 1.05 | AK100: zadaj vek držiteľa MV | AL100: 100 | AM100: zadaj vek držiteľa MV | AN100: 100
AC101: 5%, min. 66 EUR | AD101: 0 | AE101: 1.1 | AF101: 1.1 | AK101: menej ako 21 rokov (nedovŕšených) | AL101: 1.8 | AM101: menej ako 23 rokov (nedovŕšených) | AN101: 1.75
AC102: 5%, min. 330 EUR | AD102: 0 | AE102: 0.85 | AF102: 0.85 | AK102: od 21 vrátane do 24 rokov (nedovŕšených) | AL102: 1.45 | AM102: od 23 vrátane do 25 rokov (nedovŕšených) | AN102: 1.39
AC103: modifikované | AD103: =IF(AND(AG15=1,OR(AD18=1,AD20=1,AD42=1,AD43=1)),1,0) -> 0 | AK103: od 24 vrátane do 29 rokov (nedovŕšených) | AL103: 1.3 | AM103: od 25 vrátane do 27 rokov (nedovŕšených) | AN103: 1.31
AK104: od 29 vrátane do 37 rokov (nedovŕšených) | AL104: 1.1 | AM104: od 27 vrátane do 30 rokov (nedovŕšených) | AN104: 1.1
AC105: od mínus do 12 | AK105: od 37 vrátane do 49 rokov (nedovŕšených) | AL105: 1.03 | AM105: od 30 vrátane do 50 rokov (nedovŕšených) | AN105: 1
AC106: od 12 vrátane do 24 | AK106: od 49 vrátane do 57 rokov (nedovŕšených) | AL106: 1 | AM106: od 50 vrátane do 65 rokov (nedovŕšených) | AN106: 0.87
AC107: od 24 vrátane do 36 | AK107: od 57 vrátane do 66 rokov (nedovŕšených) | AL107: 0.97 | AM107: od 50 vrátane do 65 rokov (nedovŕšených) | AN107: 0.87
AC108: od 36 vrátane do 48 | AK108: od 66 rokov vrátane a viac | AL108: 0.95 | AM108: od 65 vrátane do 70 rokov (nedovŕšených) | AN108: 0.82
AC109: od 48 vrátane do 60 | AK109: SZČO | AL109: 0.98 | AM109: právnické osoby a SZČO | AN109: 1
AC110: od 60 vrátane do 72 | AK110: právnické osoby (a.s., s.r.o., k.s. a pod.) | AL110: 1 | AM110: právnické osoby a SZČO | AN110: 1
AC111: od 72 vrátane do 84
AC112: od 84 vrátane do 96
AC113: od 96 vrátane do 108
AC114: od 108 vrátane a viac

Sheet Zmeny
B2: Verzia | C2: Platnosť verzie | E2: Zmeny / opravy / úpravy oproti predchádzajúcej verzii | G2: MENU
C3: od | D3: do
B4: 2023-11-03 | C4: 2023-07-01 | D4: 2024-03-31 | E4: predĺženie platnosti kalkulačky
B5: 2023-05-30 | C5: 2023-07-01 | D5: 2023-12-31 | E5: zmena základných sadzieb pre segment aj nesegment
B6: 2022-11-22 | C6: 2023-01-01 | D6: 2023-06-30 | E6: zmena sadzieb a segmentačných koef.
B7: 2021-11-25 | C7: 2022-01-01 | D7: 2022-12-31 | E7: zmena sadzieb
E8: úprava výsl. koef. za 2 spôsoby používania MV
E9: vylepšenie kontroly pripoistení
E10: doplnenie nových druhov MV (obytné MV, pojazdný prac. stroj s EČV)
B11: 2021-08-23 | C11: 2021-05-01 | D11: 2021-12-31 | E11: predĺženie platnosti kalkulačky
B12: 2021-04-13 | C12: 2021-05-01 | D12: 2021-09-30 | E12: aktualizácia segmentácie (doplnenie výkonu MV)
E13: zmena sadzieb a koef.
E14: úprava minimálneho poistného za základné poistenie MV
E15: vylepšenie kontroly a výpočtu GAP PS
B16: 2021-02-09 | C16: 2020-07-15 | D16: 2021-04-30 | E16: predĺženie platnosti kalkulačky (Akciové zníženia sadzieb základného poistenia + AK2020-1)
B17: 2020-10-15 | C17: 2020-07-15 | D17: 2021-02-28 | E17: predĺženie platnosti kalkulačky (Akciové zníženia sadzieb základného poistenia)
B18: 2020-07-06 | C18: 2020-07-15 | D18: 2020-10-31 | E18: akciové zníženia sadzieb základného poistenia
B19: 2020-02-20 | C19: 2019-11-01 | D19: 2020-09-30 | E19: predĺženie platnosti kalkulačky
B20: 2019-10-07 | C20: 2019-11-01 | D20: 2020-03-31 | E20: zmena základných sadzieb a koef. pre vek
B21: 2019-08-16 | C21: 2019-09-01 | D21: 2019-12-31 | E21: doplnenie výpočtov pre segmentáciu
E22: úprava PS a spoluúčastí podľa Metodiky
E23: zrušenie členenia na leasingové a neleasingové MV
E24: vylepšenie kontroly spoluúčasti
E25: vylepšenie kontroly GAP
E26: výpočet PML
E27: upozornenie na povinnosť absolvovať vstupnú obhliadku pre ojazdené MV
B28: 2019-05-17 | C28: 2019-01-01 | D28: 2019-07-31 | E28: predĺženie platnosti kalkulačky
B29: 2019-03-29 | C29: 2019-01-01 | D29: 2019-05-31 | E29: predĺženie platnosti kalkulačky
B30: 2018-11-30 | C30: 2019-01-01 | D30: 2019-03-31 | E30: zmena sadzieb z dôvodu zavedenia dane z poistenia
E31: doplnenie výpočtov k dani z poistenia
E32: kontrola výšky splátky poistného
B33: 2018-09-14 | C33: 2018-03-01 | D33: 2018-12-31 | E33: predĺženie platnosti kalkulačky
B34: 2018-05-31 | C34: 2018-03-01 | D34: 2018-09-30 | E34: predĺženie platnosti kalkulačky
B35: 2018-05-02 | C35: 2018-03-01 | D35: 2018-05-31 | E35: predĺženie platnosti kalkulačky
B36: 2018-02-28 | C36: 2018-03-01 | D36: 2018-04-30 | E36: zrušenie spoluúčasti Franšíza 199 EUR
B37: 2017-12-15 | C37: 2018-01-01 | D37: 2018-04-30 | E37: zapracovanie AK2018-1
E38: rovnaké sadzby pre všetky RS
E39: zrušenie spoluúčasti 0 EUR
E40: zmena spoluúčasti 150 € na 199 €
E41: zmena koef. spoluúčastí
E42: kontrola PS MV a povolenej spoluúčasti
E43: kontrola leasingového a neleasingového MV
B44: 2017-09-21 | C44: 2017-07-01 | D44: 2017-12-31 | E44: predĺženie platnosti kalkulačky, ponechanie len 1 variantu
B45: 2017-05-29 | C45: 2017-07-01 | D45: 2017-09-30 | E45: úprava formátovania
B46: 2017-05-19 | C46: 2017-07-01 | D46: 2017-09-30 | E46: zmena koef. pre spoluúčasť 0 EUR a franšízu 199 EUR
B47: 2017-03-23 | C47: 2017-01-01 | D47: 2017-06-30 | E47: predĺženie platnosti kalkulačky
B48: 2017-01-11 | C48: 2017-01-01 | D48: 2017-03-31 | E48: oprava sadzieb pre MV nad 3,5 t vo Full variantoch
E49: oprava comba pripoistenia prepravy vo Full variantoch
E50: doplnenie výluky pre Range Rover Evoque
E51: predĺženie platnosti kalkulačky
B52: 2016-12-15 | C52: 2017-01-01 | D52: 2017-01-31 | E52: zvýšenie základných sadzieb a sadzieb pre pripoistenia
E53: zmena rozsahu akciového balíka (nová Akcia Kasko 2017-1)
E54: rozšírenie porovnania akciových a neakciových variantov
E55: rozšírenie nápovedy (komentáre)
B56: 2016-10-25 | C56: 2016-09-01 | D56: 2016-12-31 | E56: predĺženie platnosti kalkulačky
B57: 2016-09-23 | C57: 2016-09-01 | D57: 2016-10-31 | E57: oprava RS značky "DS"
E58: doplnenie značky "Piaggio"
E59: úprava veľkosti pri tlači
B60: 2016-09-12 | C60: 2016-09-01 | D60: 2016-10-31 | E60: nastavenie kontroly výluky GAP (druh MV, PS, vek MV, zapis držiteľa, spôsob používania)
E61: doplnenie možnosti zadať 2 rôzne spôsoby používania MV s výpočtom výsled. koef.
B62: 2016-09-06 | C62: 2016-09-01 | D62: 2016-10-31 | E62: nastavenie kontroly a "sčernania" kalkulačky pre PS max a vypršanú platnosť kalkulačky
E63: nastavenie kontroly a "sčernania" kalkulačky pre nekorektne udelené zľavy (veľa zliav)
E64: oprava chyby - nesprávna PS max pre MV nad 3,5 t a motocykle
E65: oprava chyby - nemožnosť zmeniť combo s počtom mesiacov bezškodového priebehu
E66: oprava chyby - prázdne combo pre GAP full verzia
E67: rozšírenie nápovedy (komentáre)
E68: zrušenie karty "Kódy MV"
E69: zavedenie karty "Zmeny"

Sheet Date (hidden)
C2: Platnosť kalkulačky | G2: MENU
E3: txt
C4: od | D4: 2023-07-01 | E4: 01.07.2023 | I4: od | J4: =$D$4 -> 2023-07-01 | K4: check | M4: =IF(TODAY()<Date!D4,Date!D4,TODAY()) -> 2023-11-03
C5: do | D5: 2024-03-31 | E5: 31.03.2024 | I5: do | J5: =$D$5 -> 2024-03-31
I6: uzatvorenie | J6: =TODAY() -> 2023-11-03 | K6: =IF(J6-J9>J5,1,0) -> 0
I7: účinnosť | J7: ='Kalkulačka KASKO'!F9 -> 2024-01-01 | K7: =IF(OR(J7<J4,J7>J5,J8-J10>J5),1,0) -> 0
D8: verzia | E8: 03.11.2023 | I8: today | J8: =TODAY() -> 2023-11-03
I9: spätne uzatvorenie | J9: 10
I10: spätne účinnosť | J10: 10
I11: OUT | K11: =IF(OR(K6=1,K7=1),1,0) -> 0
